{"text_format":"1","workbook":"xlsx","n_sheets":5,"sheets":["Главная страница","Задание","Щиты","E-mail","HELP"],"not_rendered":{"charts":0,"images":18,"macros":1,"external_links":0,"defined_names":30,"comments":0,"pivot_tables":0},"unopened":[],"bounds":{"document_bytes":16777216,"sheet_cells":100000,"rows_first":2000,"rows_last":500,"rows_between":2000,"halvings":0,"cell_chars":16384,"cell_head_chars":4096},"cells_cut":0,"cells_raw":0,"read":"whole","date_system":"1900"}

{"sheet":"Главная страница","index":0,"n_rows":15,"n_cols":9,"rows_kept":15,"cut":false,"hidden":false,"merged":[[6,8,12,12],[14,2,27,12]]}
["OK","OK","OK","OK"]
[25]
[]
[]
[]
[]
[null,null,null,null,null,null,null,null,"Данный файл предназначен для заполнения задания на выполнение проектирования однолинейных схем электрических щитов"]
[]
[]
[]
[]
[]
[]
[]
[null,null,"Заполнение задания рекомендуется выполнять в следующем порядке: \n1. Заполнить данными лист \"Задание\" .\n2. Проверить правильность заполнения листа \"Задание\" при помощи кнопки \"Проверить лист \"Задание\".\n3. На листе \"Щиты\" заполнить список щитов (можно воспользоваться кнопкой \"Сформировать список щитов\")\n4. Заполнить данными лист \"Щиты\".\n5. Проверить правильность заполнения листа \"Щиты\" при помощи кнопки \"Проверить лист \"Щиты\".\n6. Заполнить данными лист \"E-mail\".\n7. Проверить правильность заполнения листа \"E-mail\" при помощи кнопки \"Проверить лист \"E-mail\".\n8. Проверить правильность заполнения всего файла при помощи кнопки \"Проверить все листы\" на листе \"Главная страница\".\n\nПризнаком того, что проверка прошла успешно, является зеленый цвет кнопок проверки.\nЗадание является проверенным, только если кнопка \"Проверить все листы\" окрашена зеленым."]

{"sheet":"Задание","index":1,"n_rows":1004,"n_cols":11,"rows_kept":1004,"cut":false,"hidden":false,"merged":[]}
["A4",null,null," "," ",null,null," "," "," "," "]
[]
["Обозначение устройства","Назначение устройства","Мощность Pу, кВт","Напряжение питания, В","Количество рабочих двигателей","Количество резервных двигателей","Наличие частотника и задатчика скорости","Наличие устройства плавного пуска","№ помещения","Номер щита","Длина кабеля"]
["ZIndex2","ZIndex12","ZIndex1","ZIndex6","ZIndex7","ZIndex9","ZIndex8","ZIndex11","ZIndex3","ZIndex5","ZIndex4"]
["В1","Вытяжной вентилятор",3,220,2,1,"Отсутствие частотника и задатчика",{"$f":"IF(AND(C5>7.5,F5<>0),\"+\",\"-\")","v":"-"},"пом. 1011","MCC-1",11]
["В2","Вытяжной вентилятор",3,220,1,1,"Встроеный частотник",{"$f":"IF(AND(C6>7.5,F6<>0),\"+\",\"-\")","v":"-"},"пом. 102","MCC-1",12]
["В3","Вытяжной вентилятор",3,220,2,1,"Отсутствие частотника и задатчика",{"$f":"IF(AND(C7>7.5,F7<>0),\"+\",\"-\")","v":"-"},"пом. 103","MCC-1",13]
["В4","Вентилятор приточной установки",4,220,1,1,"Отсутствие частотника и задатчика","-","пом. 104","MCC-1",14]
["В5","Вытяжной вентилятор",11,380,4,1,"Отсутствие частотника и задатчика","+","пом. 105","MCC-1",15]
["В6","Вытяжной вентилятор",9,380,1,1,"Отсутствие частотника и задатчика","+","пом. 106","MCC-1",16]
["В7","Вытяжной вентилятор",1,380,1,1,"Отсутствие частотника и задатчика","-","пом. 107","MCC-1",17]
["В8","Вытяжной вентилятор",5,380,2,1,"Отсутствие частотника и задатчика","-","пом. 108","MCC-1",18]
["В9","Вытяжной вентилятор",0.75,380,1,1,"Отсутствие частотника и задатчика","-","пом. 109","MCC-1",19]
["В10","Вытяжной вентилятор",12,380,2,1,"Отсутствие частотника и задатчика","+","пом. 110","MCC-1",20]
["П1","Вентилятор приточной установки",3,220,1,1,"Отсутствие частотника и задатчика","-","пом. 111","MCC-1",21]
["П2","Вентилятор приточной установки",1,220,1,1,"Отсутствие частотника и задатчика","-","пом. 112","MCC-1",22]
["П3","Вентилятор приточной установки",4,220,2,1,"Отсутствие частотника и задатчика","-","пом. 113","MCC-1",23]
["П4","Вентилятор приточной установки",3,220,2,1,"Отсутствие частотника и задатчика","-","пом. 114","MCC-1",24]
["П5","Вентилятор приточной установки",11,380,1,1,"Отсутствие частотника и задатчика","+","пом. 115","MCC-1",25]
["П6","Вентилятор приточной установки",7,380,1,1,"Отсутствие частотника и задатчика","-","пом. 116","MCC-1",26]
["П7","Вентилятор приточной установки",9,380,2,1,"Отсутствие частотника и задатчика","+","пом. 117","MCC-1",27]
["П8","Вентилятор приточной установки",15,380,2,1,"Отсутствие частотника и задатчика","+","пом. 118","MCC-1",28]
["П9","Вентилятор приточной установки",1,380,1,1,"Отсутствие частотника и задатчика","-","пом. 119","MCC-1",29]
["П10","Вентилятор приточной установки",1,380,2,1,"Отсутствие частотника и задатчика","-","пом. 120","MCC-1",30]
["AHU1","Вентилятор приточной установки",3,220,1,1,"Отсутствие частотника и задатчика","-","пом. 121","MCC-3",31]
["AHU2","Вентилятор приточной установки",1,220,1,1,"Отсутствие частотника и задатчика","-","пом. 122","MCC-3",32]
["AHU3","Вентилятор приточной установки",4,220,2,1,"Отсутствие частотника и задатчика","-","пом. 123","MCC-3",33]
["AHU4","Вентилятор приточной установки",3,220,2,1,"Отсутствие частотника и задатчика","-","пом. 124","MCC-3",34]
["AHU5","Вентилятор приточной установки",55,380,1,1,"Отсутствие частотника и задатчика","+","пом. 125","MCC-3",35]
["AHU6","Вентилятор приточной установки",45,380,1,1,"Отсутствие частотника и задатчика","+","пом. 126","MCC-3",36]
["AHU7","Вентилятор приточной установки",30,380,2,1,"Отсутствие частотника и задатчика","+","пом. 127","MCC-3",37]
["AHU8","Вентилятор приточной установки",18,380,2,1,"Отсутствие частотника и задатчика","+","пом. 128","MCC-3",38]
["AHU9","Вентилятор приточной установки",1,380,1,1,"Отсутствие частотника и задатчика","-","пом. 129","MCC-3",39]
["AHU10","Вентилятор приточной установки",1,380,4,1,"Отсутствие частотника и задатчика","-","пом. 130","MCC-3",40]
["EF1","Вытяжной вентилятор",3,220,1,1,"Отсутствие частотника и задатчика","-","пом. 131","MCC-3",39]
["EF2","Насос",4,220,1,1,"Отсутствие частотника и задатчика","-","пом. 132","MCC-3",40]
["EF3","Вытяжной вентилятор",4,220,2,1,"Отсутствие частотника и задатчика","-","пом. 133","MCC-3",40]
["EF4","Вытяжной вентилятор",3,220,2,1,"Отсутствие частотника и задатчика","-","пом. 134","MCC-3",40]
["EF5","Вытяжной вентилятор",22,380,1,1,"Отсутствие частотника и задатчика","+","пом. 135","MCC-3",39]
["EF6","Вытяжной вентилятор",11,380,1,1,"Отсутствие частотника и задатчика","+","пом. 136","MCC-3",40]
["EF7","Вытяжной вентилятор",7,380,2,1,"Отсутствие частотника и задатчика","-","пом. 137","MCC-3",39]
["EF8","Вытяжной вентилятор",4,380,2,1,"Отсутствие частотника и задатчика","-","пом. 138","MCC-3",40]
["EF9","Вытяжной вентилятор",30,380,1,1,"Отсутствие частотника и задатчика","+","пом. 139","MCC-3",39]
["EF10","Вытяжной вентилятор",50,380,2,1,"Отсутствие частотника и задатчика","+","пом. 142","MCC-3",40]
[null,null,null,null,null,null,null,"-"]
[null,null,null,null,null,null,null,"-"]
[null,null,null,null,null,null,null,"-"]
[null,null,null,null,null,null,null,"-"]
[null,null,null,null,null,null,null,"-"]
[null,null,null,null,null,null,null,"-"]
[null,null,null,null,null,null,null,"-"]
[null,null,null,null,null,null,null,"-"]
[null,null,null,null,null,null,null,"-"]
[null,null,null,null,null,null,null,"-"]
[null,null,null,null,null,null,null,"-"]
[null,null,null,null,null,null,null,"-"]
[null,null,null,null,null,null,null,"-"]
[null,null,null,null,null,null,null,"-"]
[null,null,null,null,null,null,null,"-"]
[null,null,null,null,null,null,null,"-"]
[null,null,null,null,null,null,null,"-"]
[null,null,null,null,null,null,null,"-"]
[null,null,null,null,null,null,null,"-"]
[null,null,null,null,null,null,null,"-"]
[null,null,null,null,null,null,null,"-"]
[null,null,null,null,null,null,null,"-"]
[null,null,null,null,null,null,null,"-"]
[null,null,null,null,null,null,null,"-"]
[null,null,null,null,null,null,null,"-"]
[null,null,null,null,null,null,null,"-"]
[null,null,null,null,null,null,null,{"$f":"IF(AND(C71>7.5,F71<>0),\"+\",\"-\")","v":"-"}]
[null,null,null,null,null,null,null,"-"]
[null,null,null,null,null,null,null,"-"]
[null,null,null,null,null,null,null,"-"]
[null,null,null,null,null,null,null,"-"]
[null,null,null,null,null,null,null,"-"]
[null,null,null,null,null,null,null,"-"]
[null,null,null,null,null,null,null,"-"]
[null,null,null,null,null,null,null,"-"]
[null,null,null,null,null,null,null,"-"]
[null,null,null,null,null,null,null,"-"]
[null,null,null,null,null,null,null,"-"]
[null,null,null,null,null,null,null,"-"]
[null,null,null,null,null,null,null,"-"]
[null,null,null,null,null,null,null,"-"]
[null,null,null,null,null,null,null,"-"]
[null,null,null,null,null,null,null,"-"]
[null,null,null,null,null,null,null,"-"]
[null,null,null,null,null,null,null,"-"]
[null,null,null,null,null,null,null,"-"]
[null,null,null,null,null,null,null,"-"]
[null,null,null,null,null,null,null,"-"]
[null,null,null,null,null,null,null,"-"]
[null,null,null,null,null,null,null,"-"]
[null,null,null,null,null,null,null,"-"]
[null,null,null,null,null,null,null,"-"]
[null,null,null,null,null,null,null,"-"]
[null,null,null,null,null,null,null,"-"]
[null,null,null,null,null,null,null,"-"]
[null,null,null,null,null,null,null,"-"]
[null,null,null,null,null,null,null,"-"]
[null,null,null,null,null,null,null,"-"]
[null,null,null,null,null,null,null,"-"]
[null,null,null,null,null,null,null,"-"]
[null,null,null,null,null,null,null,"-"]
[null,null,null,null,null,null,null,"-"]
[null,null,null,null,null,null,null,"-"]
[null,null,null,null,null,null,null,"-"]
[null,null,null,null,null,null,null,"-"]
[null,null,null,null,null,null,null,"-"]
[null,null,null,null,null,null,null,"-"]
[null,null,null,null,null,null,null,"-"]
[null,null,null,null,null,null,null,"-"]
[null,null,null,null,null,null,null,"-"]
[null,null,null,null,null,null,null,"-"]
[null,null,null,null,null,null,null,"-"]
[null,null,null,null,null,null,null,"-"]
[null,null,null,null,null,null,null,"-"]
[null,null,null,null,null,null,null,"-"]
[null,null,null,null,null,null,null,"-"]
[null,null,null,null,null,null,null,"-"]
[null,null,null,null,null,null,null,"-"]
[null,null,null,null,null,null,null,"-"]
[null,null,null,null,null,null,null,"-"]
[null,null,null,null,null,null,null,"-"]
[null,null,null,null,null,null,null,"-"]
[null,null,null,null,null,null,null,"-"]
[null,null,null,null,null,null,null,"-"]
[null,null,null,null,null,null,null,"-"]
[null,null,null,null,null,null,null,"-"]
[null,null,null,null,null,null,null,"-"]
[null,null,null,null,null,null,null,"-"]
[null,null,null,null,null,null,null,"-"]
[null,null,null,null,null,null,null,"-"]
[null,null,null,null,null,null,null,{"$f":"IF(AND(C135>7.5,F135<>0),\"+\",\"-\")","v":"-"}]
[null,null,null,null,null,null,null,"-"]
[null,null,null,null,null,null,null,"-"]
[null,null,null,null,null,null,null,"-"]
[null,null,null,null,null,null,null,"-"]
[null,null,null,null,null,null,null,"-"]
[null,null,null,null,null,null,null,"-"]
[null,null,null,null,null,null,null,"-"]
[null,null,null,null,null,null,null,"-"]
[null,null,null,null,null,null,null,"-"]
[null,null,null,null,null,null,null,"-"]
[null,null,null,null,null,null,null,"-"]
[null,null,null,null,null,null,null,"-"]
[null,null,null,null,null,null,null,"-"]
[null,null,null,null,null,null,null,"-"]
[null,null,null,null,null,null,null,"-"]
[null,null,null,null,null,null,null,"-"]
[null,null,null,null,null,null,null,"-"]
[null,null,null,null,null,null,null,"-"]
[null,null,null,null,null,null,null,"-"]
[null,null,null,null,null,null,null,"-"]
[null,null,null,null,null,null,null,"-"]
[null,null,null,null,null,null,null,"-"]
[null,null,null,null,null,null,null,"-"]
[null,null,null,null,null,null,null,"-"]
[null,null,null,null,null,null,null,"-"]
[null,null,null,null,null,null,null,"-"]
[null,null,null,null,null,null,null,"-"]
[null,null,null,null,null,null,null,"-"]
[null,null,null,null,null,null,null,"-"]
[null,null,null,null,null,null,null,"-"]
[null,null,null,null,null,null,null,"-"]
[null,null,null,null,null,null,null,"-"]
[null,null,null,null,null,null,null,"-"]
[null,null,null,null,null,null,null,"-"]
[null,null,null,null,null,null,null,"-"]
[null,null,null,null,null,null,null,"-"]
[null,null,null,null,null,null,null,"-"]
[null,null,null,null,null,null,null,"-"]
[null,null,null,null,null,null,null,"-"]
[null,null,null,null,null,null,null,"-"]
[null,null,null,null,null,null,null,"-"]
[null,null,null,null,null,null,null,"-"]
[null,null,null,null,null,null,null,"-"]
[null,null,null,null,null,null,null,"-"]
[null,null,null,null,null,null,null,"-"]
[null,null,null,null,null,null,null,"-"]
[null,null,null,null,null,null,null,"-"]
[null,null,null,null,null,null,null,"-"]
[null,null,null,null,null,null,null,"-"]
[null,null,null,null,null,null,null,"-"]
[null,null,null,null,null,null,null,"-"]
[null,null,null,null,null,null,null,"-"]
[null,null,null,null,null,null,null,"-"]
[null,null,null,null,null,null,null,"-"]
[null,null,null,null,null,null,null,"-"]
[null,null,null,null,null,null,null,"-"]
[null,null,null,null,null,null,null,"-"]
[null,null,null,null,null,null,null,"-"]
[null,null,null,null,null,null,null,"-"]
[null,null,null,null,null,null,null,"-"]
[null,null,null,null,null,null,null,"-"]
[null,null,null,null,null,null,null,"-"]
[null,null,null,null,null,null,null,"-"]
[null,null,null,null,null,null,null,{"$f":"IF(AND(C199>7.5,F199<>0),\"+\",\"-\")","v":"-"}]
[null,null,null,null,null,null,null,"-"]
[null,null,null,null,null,null,null,"-"]
[null,null,null,null,null,null,null,"-"]
[null,null,null,null,null,null,null,"-"]
[null,null,null,null,null,null,null,"-"]
[null,null,null,null,null,null,null,"-"]
[null,null,null,null,null,null,null,"-"]
[null,null,null,null,null,null,null,"-"]
[null,null,null,null,null,null,null,"-"]
[null,null,null,null,null,null,null,"-"]
[null,null,null,null,null,null,null,"-"]
[null,null,null,null,null,null,null,"-"]
[null,null,null,null,null,null,null,"-"]
[null,null,null,null,null,null,null,"-"]
[null,null,null,null,null,null,null,"-"]
[null,null,null,null,null,null,null,"-"]
[null,null,null,null,null,null,null,"-"]
[null,null,null,null,null,null,null,"-"]
[null,null,null,null,null,null,null,"-"]
[null,null,null,null,null,null,null,"-"]
[null,null,null,null,null,null,null,"-"]
[null,null,null,null,null,null,null,"-"]
[null,null,null,null,null,null,null,"-"]
[null,null,null,null,null,null,null,"-"]
[null,null,null,null,null,null,null,"-"]
[null,null,null,null,null,null,null,"-"]
[null,null,null,null,null,null,null,"-"]
[null,null,null,null,null,null,null,"-"]
[null,null,null,null,null,null,null,"-"]
[null,null,null,null,null,null,null,"-"]
[null,null,null,null,null,null,null,"-"]
[null,null,null,null,null,null,null,"-"]
[null,null,null,null,null,null,null,"-"]
[null,null,null,null,null,null,null,"-"]
[null,null,null,null,null,null,null,"-"]
[null,null,null,null,null,null,null,"-"]
[null,null,null,null,null,null,null,"-"]
[null,null,null,null,null,null,null,"-"]
[null,null,null,null,null,null,null,"-"]
[null,null,null,null,null,null,null,"-"]
[null,null,null,null,null,null,null,"-"]
[null,null,null,null,null,null,null,"-"]
[null,null,null,null,null,null,null,"-"]
[null,null,null,null,null,null,null,"-"]
[null,null,null,null,null,null,null,"-"]
[null,null,null,null,null,null,null,"-"]
[null,null,null,null,null,null,null,"-"]
[null,null,null,null,null,null,null,"-"]
[null,null,null,null,null,null,null,"-"]
[null,null,null,null,null,null,null,"-"]
[null,null,null,null,null,null,null,"-"]
[null,null,null,null,null,null,null,"-"]
[null,null,null,null,null,null,null,"-"]
[null,null,null,null,null,null,null,"-"]
[null,null,null,null,null,null,null,"-"]
[null,null,null,null,null,null,null,"-"]
[null,null,null,null,null,null,null,"-"]
[null,null,null,null,null,null,null,"-"]
[null,null,null,null,null,null,null,"-"]
[null,null,null,null,null,null,null,"-"]
[null,null,null,null,null,null,null,"-"]
[null,null,null,null,null,null,null,"-"]
[null,null,null,null,null,null,null,"-"]
[null,null,null,null,null,null,null,{"$f":"IF(AND(C263>7.5,F263<>0),\"+\",\"-\")","v":"-"}]
[null,null,null,null,null,null,null,"-"]
[null,null,null,null,null,null,null,"-"]
[null,null,null,null,null,null,null,"-"]
[null,null,null,null,null,null,null,"-"]
[null,null,null,null,null,null,null,"-"]
[null,null,null,null,null,null,null,"-"]
[null,null,null,null,null,null,null,"-"]
[null,null,null,null,null,null,null,"-"]
[null,null,null,null,null,null,null,"-"]
[null,null,null,null,null,null,null,"-"]
[null,null,null,null,null,null,null,"-"]
[null,null,null,null,null,null,null,"-"]
[null,null,null,null,null,null,null,"-"]
[null,null,null,null,null,null,null,"-"]
[null,null,null,null,null,null,null,"-"]
[null,null,null,null,null,null,null,"-"]
[null,null,null,null,null,null,null,"-"]
[null,null,null,null,null,null,null,"-"]
[null,null,null,null,null,null,null,"-"]
[null,null,null,null,null,null,null,"-"]
[null,null,null,null,null,null,null,"-"]
[null,null,null,null,null,null,null,"-"]
[null,null,null,null,null,null,null,"-"]
[null,null,null,null,null,null,null,"-"]
[null,null,null,null,null,null,null,"-"]
[null,null,null,null,null,null,null,"-"]
[null,null,null,null,null,null,null,"-"]
[null,null,null,null,null,null,null,"-"]
[null,null,null,null,null,null,null,"-"]
[null,null,null,null,null,null,null,"-"]
[null,null,null,null,null,null,null,"-"]
[null,null,null,null,null,null,null,"-"]
[null,null,null,null,null,null,null,"-"]
[null,null,null,null,null,null,null,"-"]
[null,null,null,null,null,null,null,"-"]
[null,null,null,null,null,null,null,"-"]
[null,null,null,null,null,null,null,"-"]
[null,null,null,null,null,null,null,"-"]
[null,null,null,null,null,null,null,"-"]
[null,null,null,null,null,null,null,"-"]
[null,null,null,null,null,null,null,"-"]
[null,null,null,null,null,null,null,"-"]
[null,null,null,null,null,null,null,"-"]
[null,null,null,null,null,null,null,"-"]
[null,null,null,null,null,null,null,"-"]
[null,null,null,null,null,null,null,"-"]
[null,null,null,null,null,null,null,"-"]
[null,null,null,null,null,null,null,"-"]
[null,null,null,null,null,null,null,"-"]
[null,null,null,null,null,null,null,"-"]
[null,null,null,null,null,null,null,"-"]
[null,null,null,null,null,null,null,"-"]
[null,null,null,null,null,null,null,"-"]
[null,null,null,null,null,null,null,"-"]
[null,null,null,null,null,null,null,"-"]
[null,null,null,null,null,null,null,"-"]
[null,null,null,null,null,null,null,"-"]
[null,null,null,null,null,null,null,"-"]
[null,null,null,null,null,null,null,"-"]
[null,null,null,null,null,null,null,"-"]
[null,null,null,null,null,null,null,"-"]
[null,null,null,null,null,null,null,"-"]
[null,null,null,null,null,null,null,"-"]
[null,null,null,null,null,null,null,{"$f":"IF(AND(C327>7.5,F327<>0),\"+\",\"-\")","v":"-"}]
[null,null,null,null,null,null,null,"-"]
[null,null,null,null,null,null,null,"-"]
[null,null,null,null,null,null,null,"-"]
[null,null,null,null,null,null,null,"-"]
[null,null,null,null,null,null,null,"-"]
[null,null,null,null,null,null,null,"-"]
[null,null,null,null,null,null,null,"-"]
[null,null,null,null,null,null,null,"-"]
[null,null,null,null,null,null,null,"-"]
[null,null,null,null,null,null,null,"-"]
[null,null,null,null,null,null,null,"-"]
[null,null,null,null,null,null,null,"-"]
[null,null,null,null,null,null,null,"-"]
[null,null,null,null,null,null,null,"-"]
[null,null,null,null,null,null,null,"-"]
[null,null,null,null,null,null,null,"-"]
[null,null,null,null,null,null,null,"-"]
[null,null,null,null,null,null,null,"-"]
[null,null,null,null,null,null,null,"-"]
[null,null,null,null,null,null,null,"-"]
[null,null,null,null,null,null,null,"-"]
[null,null,null,null,null,null,null,"-"]
[null,null,null,null,null,null,null,"-"]
[null,null,null,null,null,null,null,"-"]
[null,null,null,null,null,null,null,"-"]
[null,null,null,null,null,null,null,"-"]
[null,null,null,null,null,null,null,"-"]
[null,null,null,null,null,null,null,"-"]
[null,null,null,null,null,null,null,"-"]
[null,null,null,null,null,null,null,"-"]
[null,null,null,null,null,null,null,"-"]
[null,null,null,null,null,null,null,"-"]
[null,null,null,null,null,null,null,"-"]
[null,null,null,null,null,null,null,"-"]
[null,null,null,null,null,null,null,"-"]
[null,null,null,null,null,null,null,"-"]
[null,null,null,null,null,null,null,"-"]
[null,null,null,null,null,null,null,"-"]
[null,null,null,null,null,null,null,"-"]
[null,null,null,null,null,null,null,"-"]
[null,null,null,null,null,null,null,"-"]
[null,null,null,null,null,null,null,"-"]
[null,null,null,null,null,null,null,"-"]
[null,null,null,null,null,null,null,"-"]
[null,null,null,null,null,null,null,"-"]
[null,null,null,null,null,null,null,"-"]
[null,null,null,null,null,null,null,"-"]
[null,null,null,null,null,null,null,"-"]
[null,null,null,null,null,null,null,"-"]
[null,null,null,null,null,null,null,"-"]
[null,null,null,null,null,null,null,"-"]
[null,null,null,null,null,null,null,"-"]
[null,null,null,null,null,null,null,"-"]
[null,null,null,null,null,null,null,"-"]
[null,null,null,null,null,null,null,"-"]
[null,null,null,null,null,null,null,"-"]
[null,null,null,null,null,null,null,"-"]
[null,null,null,null,null,null,null,"-"]
[null,null,null,null,null,null,null,"-"]
[null,null,null,null,null,null,null,"-"]
[null,null,null,null,null,null,null,"-"]
[null,null,null,null,null,null,null,"-"]
[null,null,null,null,null,null,null,"-"]
[null,null,null,null,null,null,null,{"$f":"IF(AND(C391>7.5,F391<>0),\"+\",\"-\")","v":"-"}]
[null,null,null,null,null,null,null,"-"]
[null,null,null,null,null,null,null,"-"]
[null,null,null,null,null,null,null,"-"]
[null,null,null,null,null,null,null,"-"]
[null,null,null,null,null,null,null,"-"]
[null,null,null,null,null,null,null,"-"]
[null,null,null,null,null,null,null,"-"]
[null,null,null,null,null,null,null,"-"]
[null,null,null,null,null,null,null,"-"]
[null,null,null,null,null,null,null,"-"]
[null,null,null,null,null,null,null,"-"]
[null,null,null,null,null,null,null,"-"]
[null,null,null,null,null,null,null,"-"]
[null,null,null,null,null,null,null,"-"]
[null,null,null,null,null,null,null,"-"]
[null,null,null,null,null,null,null,"-"]
[null,null,null,null,null,null,null,"-"]
[null,null,null,null,null,null,null,"-"]
[null,null,null,null,null,null,null,"-"]
[null,null,null,null,null,null,null,"-"]
[null,null,null,null,null,null,null,"-"]
[null,null,null,null,null,null,null,"-"]
[null,null,null,null,null,null,null,"-"]
[null,null,null,null,null,null,null,"-"]
[null,null,null,null,null,null,null,"-"]
[null,null,null,null,null,null,null,"-"]
[null,null,null,null,null,null,null,"-"]
[null,null,null,null,null,null,null,"-"]
[null,null,null,null,null,null,null,"-"]
[null,null,null,null,null,null,null,"-"]
[null,null,null,null,null,null,null,"-"]
[null,null,null,null,null,null,null,"-"]
[null,null,null,null,null,null,null,"-"]
[null,null,null,null,null,null,null,"-"]
[null,null,null,null,null,null,null,"-"]
[null,null,null,null,null,null,null,"-"]
[null,null,null,null,null,null,null,"-"]
[null,null,null,null,null,null,null,"-"]
[null,null,null,null,null,null,null,"-"]
[null,null,null,null,null,null,null,"-"]
[null,null,null,null,null,null,null,"-"]
[null,null,null,null,null,null,null,"-"]
[null,null,null,null,null,null,null,"-"]
[null,null,null,null,null,null,null,"-"]
[null,null,null,null,null,null,null,"-"]
[null,null,null,null,null,null,null,"-"]
[null,null,null,null,null,null,null,"-"]
[null,null,null,null,null,null,null,"-"]
[null,null,null,null,null,null,null,"-"]
[null,null,null,null,null,null,null,"-"]
[null,null,null,null,null,null,null,"-"]
[null,null,null,null,null,null,null,"-"]
[null,null,null,null,null,null,null,"-"]
[null,null,null,null,null,null,null,"-"]
[null,null,null,null,null,null,null,"-"]
[null,null,null,null,null,null,null,"-"]
[null,null,null,null,null,null,null,"-"]
[null,null,null,null,null,null,null,"-"]
[null,null,null,null,null,null,null,"-"]
[null,null,null,null,null,null,null,"-"]
[null,null,null,null,null,null,null,"-"]
[null,null,null,null,null,null,null,"-"]
[null,null,null,null,null,null,null,"-"]
[null,null,null,null,null,null,null,{"$f":"IF(AND(C455>7.5,F455<>0),\"+\",\"-\")","v":"-"}]
[null,null,null,null,null,null,null,"-"]
[null,null,null,null,null,null,null,"-"]
[null,null,null,null,null,null,null,"-"]
[null,null,null,null,null,null,null,"-"]
[null,null,null,null,null,null,null,"-"]
[null,null,null,null,null,null,null,"-"]
[null,null,null,null,null,null,null,"-"]
[null,null,null,null,null,null,null,"-"]
[null,null,null,null,null,null,null,"-"]
[null,null,null,null,null,null,null,"-"]
[null,null,null,null,null,null,null,"-"]
[null,null,null,null,null,null,null,"-"]
[null,null,null,null,null,null,null,"-"]
[null,null,null,null,null,null,null,"-"]
[null,null,null,null,null,null,null,"-"]
[null,null,null,null,null,null,null,"-"]
[null,null,null,null,null,null,null,"-"]
[null,null,null,null,null,null,null,"-"]
[null,null,null,null,null,null,null,"-"]
[null,null,null,null,null,null,null,"-"]
[null,null,null,null,null,null,null,"-"]
[null,null,null,null,null,null,null,"-"]
[null,null,null,null,null,null,null,"-"]
[null,null,null,null,null,null,null,"-"]
[null,null,null,null,null,null,null,"-"]
[null,null,null,null,null,null,null,"-"]
[null,null,null,null,null,null,null,"-"]
[null,null,null,null,null,null,null,"-"]
[null,null,null,null,null,null,null,"-"]
[null,null,null,null,null,null,null,"-"]
[null,null,null,null,null,null,null,"-"]
[null,null,null,null,null,null,null,"-"]
[null,null,null,null,null,null,null,"-"]
[null,null,null,null,null,null,null,"-"]
[null,null,null,null,null,null,null,"-"]
[null,null,null,null,null,null,null,"-"]
[null,null,null,null,null,null,null,"-"]
[null,null,null,null,null,null,null,"-"]
[null,null,null,null,null,null,null,"-"]
[null,null,null,null,null,null,null,"-"]
[null,null,null,null,null,null,null,"-"]
[null,null,null,null,null,null,null,"-"]
[null,null,null,null,null,null,null,"-"]
[null,null,null,null,null,null,null,"-"]
[null,null,null,null,null,null,null,"-"]
[null,null,null,null,null,null,null,"-"]
[null,null,null,null,null,null,null,"-"]
[null,null,null,null,null,null,null,"-"]
[null,null,null,null,null,null,null,"-"]
[null,null,null,null,null,null,null,"-"]
[null,null,null,null,null,null,null,"-"]
[null,null,null,null,null,null,null,"-"]
[null,null,null,null,null,null,null,"-"]
[null,null,null,null,null,null,null,"-"]
[null,null,null,null,null,null,null,"-"]
[null,null,null,null,null,null,null,"-"]
[null,null,null,null,null,null,null,"-"]
[null,null,null,null,null,null,null,"-"]
[null,null,null,null,null,null,null,"-"]
[null,null,null,null,null,null,null,"-"]
[null,null,null,null,null,null,null,"-"]
[null,null,null,null,null,null,null,"-"]
[null,null,null,null,null,null,null,"-"]
[null,null,null,null,null,null,null,{"$f":"IF(AND(C519>7.5,F519<>0),\"+\",\"-\")","v":"-"}]
[null,null,null,null,null,null,null,"-"]
[null,null,null,null,null,null,null,"-"]
[null,null,null,null,null,null,null,"-"]
[null,null,null,null,null,null,null,"-"]
[null,null,null,null,null,null,null,"-"]
[null,null,null,null,null,null,null,"-"]
[null,null,null,null,null,null,null,"-"]
[null,null,null,null,null,null,null,"-"]
[null,null,null,null,null,null,null,"-"]
[null,null,null,null,null,null,null,"-"]
[null,null,null,null,null,null,null,"-"]
[null,null,null,null,null,null,null,"-"]
[null,null,null,null,null,null,null,"-"]
[null,null,null,null,null,null,null,"-"]
[null,null,null,null,null,null,null,"-"]
[null,null,null,null,null,null,null,"-"]
[null,null,null,null,null,null,null,"-"]
[null,null,null,null,null,null,null,"-"]
[null,null,null,null,null,null,null,"-"]
[null,null,null,null,null,null,null,"-"]
[null,null,null,null,null,null,null,"-"]
[null,null,null,null,null,null,null,"-"]
[null,null,null,null,null,null,null,"-"]
[null,null,null,null,null,null,null,"-"]
[null,null,null,null,null,null,null,"-"]
[null,null,null,null,null,null,null,"-"]
[null,null,null,null,null,null,null,"-"]
[null,null,null,null,null,null,null,"-"]
[null,null,null,null,null,null,null,"-"]
[null,null,null,null,null,null,null,"-"]
[null,null,null,null,null,null,null,"-"]
[null,null,null,null,null,null,null,"-"]
[null,null,null,null,null,null,null,"-"]
[null,null,null,null,null,null,null,"-"]
[null,null,null,null,null,null,null,"-"]
[null,null,null,null,null,null,null,"-"]
[null,null,null,null,null,null,null,"-"]
[null,null,null,null,null,null,null,"-"]
[null,null,null,null,null,null,null,"-"]
[null,null,null,null,null,null,null,"-"]
[null,null,null,null,null,null,null,"-"]
[null,null,null,null,null,null,null,"-"]
[null,null,null,null,null,null,null,"-"]
[null,null,null,null,null,null,null,"-"]
[null,null,null,null,null,null,null,"-"]
[null,null,null,null,null,null,null,"-"]
[null,null,null,null,null,null,null,"-"]
[null,null,null,null,null,null,null,"-"]
[null,null,null,null,null,null,null,"-"]
[null,null,null,null,null,null,null,"-"]
[null,null,null,null,null,null,null,"-"]
[null,null,null,null,null,null,null,"-"]
[null,null,null,null,null,null,null,"-"]
[null,null,null,null,null,null,null,"-"]
[null,null,null,null,null,null,null,"-"]
[null,null,null,null,null,null,null,"-"]
[null,null,null,null,null,null,null,"-"]
[null,null,null,null,null,null,null,"-"]
[null,null,null,null,null,null,null,"-"]
[null,null,null,null,null,null,null,"-"]
[null,null,null,null,null,null,null,"-"]
[null,null,null,null,null,null,null,"-"]
[null,null,null,null,null,null,null,"-"]
[null,null,null,null,null,null,null,{"$f":"IF(AND(C583>7.5,F583<>0),\"+\",\"-\")","v":"-"}]
[null,null,null,null,null,null,null,"-"]
[null,null,null,null,null,null,null,"-"]
[null,null,null,null,null,null,null,"-"]
[null,null,null,null,null,null,null,"-"]
[null,null,null,null,null,null,null,"-"]
[null,null,null,null,null,null,null,"-"]
[null,null,null,null,null,null,null,"-"]
[null,null,null,null,null,null,null,"-"]
[null,null,null,null,null,null,null,"-"]
[null,null,null,null,null,null,null,"-"]
[null,null,null,null,null,null,null,"-"]
[null,null,null,null,null,null,null,"-"]
[null,null,null,null,null,null,null,"-"]
[null,null,null,null,null,null,null,"-"]
[null,null,null,null,null,null,null,"-"]
[null,null,null,null,null,null,null,"-"]
[null,null,null,null,null,null,null,"-"]
[null,null,null,null,null,null,null,"-"]
[null,null,null,null,null,null,null,"-"]
[null,null,null,null,null,null,null,"-"]
[null,null,null,null,null,null,null,"-"]
[null,null,null,null,null,null,null,"-"]
[null,null,null,null,null,null,null,"-"]
[null,null,null,null,null,null,null,"-"]
[null,null,null,null,null,null,null,"-"]
[null,null,null,null,null,null,null,"-"]
[null,null,null,null,null,null,null,"-"]
[null,null,null,null,null,null,null,"-"]
[null,null,null,null,null,null,null,"-"]
[null,null,null,null,null,null,null,"-"]
[null,null,null,null,null,null,null,"-"]
[null,null,null,null,null,null,null,"-"]
[null,null,null,null,null,null,null,"-"]
[null,null,null,null,null,null,null,"-"]
[null,null,null,null,null,null,null,"-"]
[null,null,null,null,null,null,null,"-"]
[null,null,null,null,null,null,null,"-"]
[null,null,null,null,null,null,null,"-"]
[null,null,null,null,null,null,null,"-"]
[null,null,null,null,null,null,null,"-"]
[null,null,null,null,null,null,null,"-"]
[null,null,null,null,null,null,null,"-"]
[null,null,null,null,null,null,null,"-"]
[null,null,null,null,null,null,null,"-"]
[null,null,null,null,null,null,null,"-"]
[null,null,null,null,null,null,null,"-"]
[null,null,null,null,null,null,null,"-"]
[null,null,null,null,null,null,null,"-"]
[null,null,null,null,null,null,null,"-"]
[null,null,null,null,null,null,null,"-"]
[null,null,null,null,null,null,null,"-"]
[null,null,null,null,null,null,null,"-"]
[null,null,null,null,null,null,null,"-"]
[null,null,null,null,null,null,null,"-"]
[null,null,null,null,null,null,null,"-"]
[null,null,null,null,null,null,null,"-"]
[null,null,null,null,null,null,null,"-"]
[null,null,null,null,null,null,null,"-"]
[null,null,null,null,null,null,null,"-"]
[null,null,null,null,null,null,null,"-"]
[null,null,null,null,null,null,null,"-"]
[null,null,null,null,null,null,null,"-"]
[null,null,null,null,null,null,null,"-"]
[null,null,null,null,null,null,null,{"$f":"IF(AND(C647>7.5,F647<>0),\"+\",\"-\")","v":"-"}]
[null,null,null,null,null,null,null,"-"]
[null,null,null,null,null,null,null,"-"]
[null,null,null,null,null,null,null,"-"]
[null,null,null,null,null,null,null,"-"]
[null,null,null,null,null,null,null,"-"]
[null,null,null,null,null,null,null,"-"]
[null,null,null,null,null,null,null,"-"]
[null,null,null,null,null,null,null,"-"]
[null,null,null,null,null,null,null,"-"]
[null,null,null,null,null,null,null,"-"]
[null,null,null,null,null,null,null,"-"]
[null,null,null,null,null,null,null,"-"]
[null,null,null,null,null,null,null,"-"]
[null,null,null,null,null,null,null,"-"]
[null,null,null,null,null,null,null,"-"]
[null,null,null,null,null,null,null,"-"]
[null,null,null,null,null,null,null,"-"]
[null,null,null,null,null,null,null,"-"]
[null,null,null,null,null,null,null,"-"]
[null,null,null,null,null,null,null,"-"]
[null,null,null,null,null,null,null,"-"]
[null,null,null,null,null,null,null,"-"]
[null,null,null,null,null,null,null,"-"]
[null,null,null,null,null,null,null,"-"]
[null,null,null,null,null,null,null,"-"]
[null,null,null,null,null,null,null,"-"]
[null,null,null,null,null,null,null,"-"]
[null,null,null,null,null,null,null,"-"]
[null,null,null,null,null,null,null,"-"]
[null,null,null,null,null,null,null,"-"]
[null,null,null,null,null,null,null,"-"]
[null,null,null,null,null,null,null,"-"]
[null,null,null,null,null,null,null,"-"]
[null,null,null,null,null,null,null,"-"]
[null,null,null,null,null,null,null,"-"]
[null,null,null,null,null,null,null,"-"]
[null,null,null,null,null,null,null,"-"]
[null,null,null,null,null,null,null,"-"]
[null,null,null,null,null,null,null,"-"]
[null,null,null,null,null,null,null,"-"]
[null,null,null,null,null,null,null,"-"]
[null,null,null,null,null,null,null,"-"]
[null,null,null,null,null,null,null,"-"]
[null,null,null,null,null,null,null,"-"]
[null,null,null,null,null,null,null,"-"]
[null,null,null,null,null,null,null,"-"]
[null,null,null,null,null,null,null,"-"]
[null,null,null,null,null,null,null,"-"]
[null,null,null,null,null,null,null,"-"]
[null,null,null,null,null,null,null,"-"]
[null,null,null,null,null,null,null,"-"]
[null,null,null,null,null,null,null,"-"]
[null,null,null,null,null,null,null,"-"]
[null,null,null,null,null,null,null,"-"]
[null,null,null,null,null,null,null,"-"]
[null,null,null,null,null,null,null,"-"]
[null,null,null,null,null,null,null,"-"]
[null,null,null,null,null,null,null,"-"]
[null,null,null,null,null,null,null,"-"]
[null,null,null,null,null,null,null,"-"]
[null,null,null,null,null,null,null,"-"]
[null,null,null,null,null,null,null,"-"]
[null,null,null,null,null,null,null,"-"]
[null,null,null,null,null,null,null,{"$f":"IF(AND(C711>7.5,F711<>0),\"+\",\"-\")","v":"-"}]
[null,null,null,null,null,null,null,"-"]
[null,null,null,null,null,null,null,"-"]
[null,null,null,null,null,null,null,"-"]
[null,null,null,null,null,null,null,"-"]
[null,null,null,null,null,null,null,"-"]
[null,null,null,null,null,null,null,"-"]
[null,null,null,null,null,null,null,"-"]
[null,null,null,null,null,null,null,"-"]
[null,null,null,null,null,null,null,"-"]
[null,null,null,null,null,null,null,"-"]
[null,null,null,null,null,null,null,"-"]
[null,null,null,null,null,null,null,"-"]
[null,null,null,null,null,null,null,"-"]
[null,null,null,null,null,null,null,"-"]
[null,null,null,null,null,null,null,"-"]
[null,null,null,null,null,null,null,"-"]
[null,null,null,null,null,null,null,"-"]
[null,null,null,null,null,null,null,"-"]
[null,null,null,null,null,null,null,"-"]
[null,null,null,null,null,null,null,"-"]
[null,null,null,null,null,null,null,"-"]
[null,null,null,null,null,null,null,"-"]
[null,null,null,null,null,null,null,"-"]
[null,null,null,null,null,null,null,"-"]
[null,null,null,null,null,null,null,"-"]
[null,null,null,null,null,null,null,"-"]
[null,null,null,null,null,null,null,"-"]
[null,null,null,null,null,null,null,"-"]
[null,null,null,null,null,null,null,"-"]
[null,null,null,null,null,null,null,"-"]
[null,null,null,null,null,null,null,"-"]
[null,null,null,null,null,null,null,"-"]
[null,null,null,null,null,null,null,"-"]
[null,null,null,null,null,null,null,"-"]
[null,null,null,null,null,null,null,"-"]
[null,null,null,null,null,null,null,"-"]
[null,null,null,null,null,null,null,"-"]
[null,null,null,null,null,null,null,"-"]
[null,null,null,null,null,null,null,"-"]
[null,null,null,null,null,null,null,"-"]
[null,null,null,null,null,null,null,"-"]
[null,null,null,null,null,null,null,"-"]
[null,null,null,null,null,null,null,"-"]
[null,null,null,null,null,null,null,"-"]
[null,null,null,null,null,null,null,"-"]
[null,null,null,null,null,null,null,"-"]
[null,null,null,null,null,null,null,"-"]
[null,null,null,null,null,null,null,"-"]
[null,null,null,null,null,null,null,"-"]
[null,null,null,null,null,null,null,"-"]
[null,null,null,null,null,null,null,"-"]
[null,null,null,null,null,null,null,"-"]
[null,null,null,null,null,null,null,"-"]
[null,null,null,null,null,null,null,"-"]
[null,null,null,null,null,null,null,"-"]
[null,null,null,null,null,null,null,"-"]
[null,null,null,null,null,null,null,"-"]
[null,null,null,null,null,null,null,"-"]
[null,null,null,null,null,null,null,"-"]
[null,null,null,null,null,null,null,"-"]
[null,null,null,null,null,null,null,"-"]
[null,null,null,null,null,null,null,"-"]
[null,null,null,null,null,null,null,"-"]
[null,null,null,null,null,null,null,{"$f":"IF(AND(C775>7.5,F775<>0),\"+\",\"-\")","v":"-"}]
[null,null,null,null,null,null,null,"-"]
[null,null,null,null,null,null,null,"-"]
[null,null,null,null,null,null,null,"-"]
[null,null,null,null,null,null,null,"-"]
[null,null,null,null,null,null,null,"-"]
[null,null,null,null,null,null,null,"-"]
[null,null,null,null,null,null,null,"-"]
[null,null,null,null,null,null,null,"-"]
[null,null,null,null,null,null,null,"-"]
[null,null,null,null,null,null,null,"-"]
[null,null,null,null,null,null,null,"-"]
[null,null,null,null,null,null,null,"-"]
[null,null,null,null,null,null,null,"-"]
[null,null,null,null,null,null,null,"-"]
[null,null,null,null,null,null,null,"-"]
[null,null,null,null,null,null,null,"-"]
[null,null,null,null,null,null,null,"-"]
[null,null,null,null,null,null,null,"-"]
[null,null,null,null,null,null,null,"-"]
[null,null,null,null,null,null,null,"-"]
[null,null,null,null,null,null,null,"-"]
[null,null,null,null,null,null,null,"-"]
[null,null,null,null,null,null,null,"-"]
[null,null,null,null,null,null,null,"-"]
[null,null,null,null,null,null,null,"-"]
[null,null,null,null,null,null,null,"-"]
[null,null,null,null,null,null,null,"-"]
[null,null,null,null,null,null,null,"-"]
[null,null,null,null,null,null,null,"-"]
[null,null,null,null,null,null,null,"-"]
[null,null,null,null,null,null,null,"-"]
[null,null,null,null,null,null,null,"-"]
[null,null,null,null,null,null,null,"-"]
[null,null,null,null,null,null,null,"-"]
[null,null,null,null,null,null,null,"-"]
[null,null,null,null,null,null,null,"-"]
[null,null,null,null,null,null,null,"-"]
[null,null,null,null,null,null,null,"-"]
[null,null,null,null,null,null,null,"-"]
[null,null,null,null,null,null,null,"-"]
[null,null,null,null,null,null,null,"-"]
[null,null,null,null,null,null,null,"-"]
[null,null,null,null,null,null,null,"-"]
[null,null,null,null,null,null,null,"-"]
[null,null,null,null,null,null,null,"-"]
[null,null,null,null,null,null,null,"-"]
[null,null,null,null,null,null,null,"-"]
[null,null,null,null,null,null,null,"-"]
[null,null,null,null,null,null,null,"-"]
[null,null,null,null,null,null,null,"-"]
[null,null,null,null,null,null,null,"-"]
[null,null,null,null,null,null,null,"-"]
[null,null,null,null,null,null,null,"-"]
[null,null,null,null,null,null,null,"-"]
[null,null,null,null,null,null,null,"-"]
[null,null,null,null,null,null,null,"-"]
[null,null,null,null,null,null,null,"-"]
[null,null,null,null,null,null,null,"-"]
[null,null,null,null,null,null,null,"-"]
[null,null,null,null,null,null,null,"-"]
[null,null,null,null,null,null,null,"-"]
[null,null,null,null,null,null,null,"-"]
[null,null,null,null,null,null,null,"-"]
[null,null,null,null,null,null,null,{"$f":"IF(AND(C839>7.5,F839<>0),\"+\",\"-\")","v":"-"}]
[null,null,null,null,null,null,null,"-"]
[null,null,null,null,null,null,null,"-"]
[null,null,null,null,null,null,null,"-"]
[null,null,null,null,null,null,null,"-"]
[null,null,null,null,null,null,null,"-"]
[null,null,null,null,null,null,null,"-"]
[null,null,null,null,null,null,null,"-"]
[null,null,null,null,null,null,null,"-"]
[null,null,null,null,null,null,null,"-"]
[null,null,null,null,null,null,null,"-"]
[null,null,null,null,null,null,null,"-"]
[null,null,null,null,null,null,null,"-"]
[null,null,null,null,null,null,null,"-"]
[null,null,null,null,null,null,null,"-"]
[null,null,null,null,null,null,null,"-"]
[null,null,null,null,null,null,null,"-"]
[null,null,null,null,null,null,null,"-"]
[null,null,null,null,null,null,null,"-"]
[null,null,null,null,null,null,null,"-"]
[null,null,null,null,null,null,null,"-"]
[null,null,null,null,null,null,null,"-"]
[null,null,null,null,null,null,null,"-"]
[null,null,null,null,null,null,null,"-"]
[null,null,null,null,null,null,null,"-"]
[null,null,null,null,null,null,null,"-"]
[null,null,null,null,null,null,null,"-"]
[null,null,null,null,null,null,null,"-"]
[null,null,null,null,null,null,null,"-"]
[null,null,null,null,null,null,null,"-"]
[null,null,null,null,null,null,null,"-"]
[null,null,null,null,null,null,null,"-"]
[null,null,null,null,null,null,null,"-"]
[null,null,null,null,null,null,null,"-"]
[null,null,null,null,null,null,null,"-"]
[null,null,null,null,null,null,null,"-"]
[null,null,null,null,null,null,null,"-"]
[null,null,null,null,null,null,null,"-"]
[null,null,null,null,null,null,null,"-"]
[null,null,null,null,null,null,null,"-"]
[null,null,null,null,null,null,null,"-"]
[null,null,null,null,null,null,null,"-"]
[null,null,null,null,null,null,null,"-"]
[null,null,null,null,null,null,null,"-"]
[null,null,null,null,null,null,null,"-"]
[null,null,null,null,null,null,null,"-"]
[null,null,null,null,null,null,null,"-"]
[null,null,null,null,null,null,null,"-"]
[null,null,null,null,null,null,null,"-"]
[null,null,null,null,null,null,null,"-"]
[null,null,null,null,null,null,null,"-"]
[null,null,null,null,null,null,null,"-"]
[null,null,null,null,null,null,null,"-"]
[null,null,null,null,null,null,null,"-"]
[null,null,null,null,null,null,null,"-"]
[null,null,null,null,null,null,null,"-"]
[null,null,null,null,null,null,null,"-"]
[null,null,null,null,null,null,null,"-"]
[null,null,null,null,null,null,null,"-"]
[null,null,null,null,null,null,null,"-"]
[null,null,null,null,null,null,null,"-"]
[null,null,null,null,null,null,null,"-"]
[null,null,null,null,null,null,null,"-"]
[null,null,null,null,null,null,null,"-"]
[null,null,null,null,null,null,null,{"$f":"IF(AND(C903>7.5,F903<>0),\"+\",\"-\")","v":"-"}]
[null,null,null,null,null,null,null,"-"]
[null,null,null,null,null,null,null,"-"]
[null,null,null,null,null,null,null,"-"]
[null,null,null,null,null,null,null,"-"]
[null,null,null,null,null,null,null,"-"]
[null,null,null,null,null,null,null,"-"]
[null,null,null,null,null,null,null,"-"]
[null,null,null,null,null,null,null,"-"]
[null,null,null,null,null,null,null,"-"]
[null,null,null,null,null,null,null,"-"]
[null,null,null,null,null,null,null,"-"]
[null,null,null,null,null,null,null,"-"]
[null,null,null,null,null,null,null,"-"]
[null,null,null,null,null,null,null,"-"]
[null,null,null,null,null,null,null,"-"]
[null,null,null,null,null,null,null,"-"]
[null,null,null,null,null,null,null,"-"]
[null,null,null,null,null,null,null,"-"]
[null,null,null,null,null,null,null,"-"]
[null,null,null,null,null,null,null,"-"]
[null,null,null,null,null,null,null,"-"]
[null,null,null,null,null,null,null,"-"]
[null,null,null,null,null,null,null,"-"]
[null,null,null,null,null,null,null,"-"]
[null,null,null,null,null,null,null,"-"]
[null,null,null,null,null,null,null,"-"]
[null,null,null,null,null,null,null,"-"]
[null,null,null,null,null,null,null,"-"]
[null,null,null,null,null,null,null,"-"]
[null,null,null,null,null,null,null,"-"]
[null,null,null,null,null,null,null,"-"]
[null,null,null,null,null,null,null,"-"]
[null,null,null,null,null,null,null,"-"]
[null,null,null,null,null,null,null,"-"]
[null,null,null,null,null,null,null,"-"]
[null,null,null,null,null,null,null,"-"]
[null,null,null,null,null,null,null,"-"]
[null,null,null,null,null,null,null,"-"]
[null,null,null,null,null,null,null,"-"]
[null,null,null,null,null,null,null,"-"]
[null,null,null,null,null,null,null,"-"]
[null,null,null,null,null,null,null,"-"]
[null,null,null,null,null,null,null,"-"]
[null,null,null,null,null,null,null,"-"]
[null,null,null,null,null,null,null,"-"]
[null,null,null,null,null,null,null,"-"]
[null,null,null,null,null,null,null,"-"]
[null,null,null,null,null,null,null,"-"]
[null,null,null,null,null,null,null,"-"]
[null,null,null,null,null,null,null,"-"]
[null,null,null,null,null,null,null,"-"]
[null,null,null,null,null,null,null,"-"]
[null,null,null,null,null,null,null,"-"]
[null,null,null,null,null,null,null,"-"]
[null,null,null,null,null,null,null,"-"]
[null,null,null,null,null,null,null,"-"]
[null,null,null,null,null,null,null,"-"]
[null,null,null,null,null,null,null,"-"]
[null,null,null,null,null,null,null,"-"]
[null,null,null,null,null,null,null,"-"]
[null,null,null,null,null,null,null,"-"]
[null,null,null,null,null,null,null,"-"]
[null,null,null,null,null,null,null,"-"]
[null,null,null,null,null,null,null,{"$f":"IF(AND(C967>7.5,F967<>0),\"+\",\"-\")","v":"-"}]
[null,null,null,null,null,null,null,"-"]
[null,null,null,null,null,null,null,"-"]
[null,null,null,null,null,null,null,"-"]
[null,null,null,null,null,null,null,"-"]
[null,null,null,null,null,null,null,"-"]
[null,null,null,null,null,null,null,"-"]
[null,null,null,null,null,null,null,"-"]
[null,null,null,null,null,null,null,"-"]
[null,null,null,null,null,null,null,"-"]
[null,null,null,null,null,null,null,"-"]
[null,null,null,null,null,null,null,"-"]
[null,null,null,null,null,null,null,"-"]
[null,null,null,null,null,null,null,"-"]
[null,null,null,null,null,null,null,"-"]
[null,null,null,null,null,null,null,"-"]
[null,null,null,null,null,null,null,"-"]
[null,null,null,null,null,null,null,"-"]
[null,null,null,null,null,null,null,"-"]
[null,null,null,null,null,null,null,"-"]
[null,null,null,null,null,null,null,"-"]
[null,null,null,null,null,null,null,"-"]
[null,null,null,null,null,null,null,"-"]
[null,null,null,null,null,null,null,"-"]
[null,null,null,null,null,null,null,"-"]
[null,null,null,null,null,null,null,"-"]
[null,null,null,null,null,null,null,"-"]
[null,null,null,null,null,null,null,"-"]
[null,null,null,null,null,null,null,"-"]
[null,null,null,null,null,null,null,"-"]
[null,null,null,null,null,null,null,"-"]
[null,null,null,null,null,null,null,"-"]
[null,null,null,null,null,null,null,"-"]
[null,null,null,null,null,null,null,"-"]
[null,null,null,null,null,null,null,"-"]
[null,null,null,null,null,null,null,"-"]
[null,null,null,null,null,null,null,"-"]
[null,null,null,null,null,null,null,"-"]

{"sheet":"Щиты","index":2,"n_rows":1009,"n_cols":10,"rows_kept":1009,"cut":false,"hidden":false,"merged":[]}
["A4"]
[]
["Имя щита","Производитель","Тип вводного блока для щита",null,"Ориентиро-вочная расчетная мощность для щита, кВт","Ориентиро-вочный расчетный ток утечки сети, мА","Расположение потребителей щита"]
["MCC-1","ABB","1ввод+узо",null,{"$f":"SetBoardsPower(A4,C4)","v":"117"},{"$f":"IF(C4=\"1ввод+узо\",ROUND((E4*0.4)/(0.38*1.732050807569*0.75),2),\"Вводной блок без УЗО\")","v":94.81},{"$f":"SetBoardsRoom(A4)","v":"пом. 1011, пом. 102, пом. 103, пом. 104, пом. 105, пом. 106, пом. 107, пом. 108, пом. 109, пом. 110, пом. 111, пом. 112, пом. 113, пом. 114, пом. 115, пом. 116, пом. 117, пом. 118, пом. 119, пом. 120"},null,null," "]
["MCC-3","ABB","1ввод",null,{"$f":"SetBoardsPower(A5,C5)","v":"255"},{"$f":"IF(C5=\"1ввод+узо\",ROUND((E5*0.4)/(0.38*1.732050807569*0.75),2),\"\")","v":""},"пом. 121, пом. 122, пом. 123, пом. 124, пом. 125, пом. 126, пом. 127, пом. 128, пом. 129, пом. 130, пом. 131, пом. 132, пом. 133, пом. 134, пом. 135, пом. 136, пом. 137, пом. 138, пом. 139, пом. 142"]
[null,null,null,null,{"$f":"SetBoardsPower(A6,C6)","v":""},null,{"$f":"SetBoardsRoom(A6)","v":""}]
[null,null,null,null,"",null,{"$f":"SetBoardsRoom(A7)","v":""}]
[null,null,null,null,"",null,{"$f":"SetBoardsRoom(A8)","v":""}]
[null,null,null,null,{"$f":"SetBoardsPower(A9,C9)","v":""},null,{"$f":"SetBoardsRoom(A9)","v":""}]
[null,null,null,null,"",null,""]
[null,null,null,null,"",null,""]
[null,null,null,null,"",null,""]
[null,null,null,null,"",null,""]
[null,null,null,null,"",null,""]
[null,null,null,null,"",null,""]
[null,null,null,null,"",null,""]
[null,null,null,null,"",null,""]
[null,null,null,null,"",null,""]
[null,null,null,null,"",null,""]
[null,null,null,null,"",null,""]
[null,null,null,null,"",null,""]
[null,null,null,null,"",null,""]
[null,null,null,null,"",null,""]
[null,null,null,null,"",null,""]
[null,null,null,null,"",null,""]
[null,null,null,null,"",null,""]
[null,null,null,null,"",null,""]
[null,null,null,null,"",null,""]
[null,null,null,null,"",null,""]
[null,null,null,null,"",null,""]
[null,null,null,null,"",null,""]
[null,null,null,null,"",null,""]
[null,null,null,null,"",null,""]
[null,null,null,null,"",null,""]
[null,null,null,null,"",null,""]
[null,null,null,null,"",null,""]
[null,null,null,null,"",null,""]
[null,null,null,null,"",null,""]
[null,null,null,null,"",null,""]
[null,null,null,null,"",null,""]
[null,null,null,null,"",null,""]
[null,null,null,null,"",null,""]
[null,null,null,null,"",null,""]
[null,null,null,null,"",null,""]
[null,null,null,null,"",null,""]
[null,null,null,null,"",null,""]
[null,null,null,null,"",null,""]
[null,null,null,null,"",null,""]
[null,null,null,null,"",null,""]
[null,null,null,null,"",null,""]
[null,null,null,null,"",null,""]
[null,null,null,null,"",null,""]
[null,null,null,null,{"$f":"SetBoardsPower(A53,C53)","v":""},null,""]
[null,null,null,null,"",null,""]
[null,null,null,null,"",null,""]
[null,null,null,null,"",null,""]
[null,null,null,null,"",null,""]
[null,null,null,null,"",null,""]
[null,null,null,null,"",null,""]
[null,null,null,null,"",null,""]
[null,null,null,null,"",null,""]
[null,null,null,null,"",null,""]
[null,null,null,null,"",null,""]
[null,null,null,null,"",null,""]
[null,null,null,null,"",null,""]
[null,null,null,null,"",null,""]
[null,null,null,null,"",null,""]
[null,null,null,null,"",null,""]
[null,null,null,null,"",null,""]
[null,null,null,null,{"$f":"SetBoardsPower(A70,C70)","v":""},null,""]
[null,null,null,null,"",null,""]
[null,null,null,null,"",null,""]
[null,null,null,null,"",null,{"$f":"SetBoardsRoom(A73)","v":""}]
[null,null,null,null,"",null,""]
[null,null,null,null,"",null,""]
[null,null,null,null,"",null,""]
[null,null,null,null,"",null,""]
[null,null,null,null,"",null,""]
[null,null,null,null,"",null,""]
[null,null,null,null,"",null,""]
[null,null,null,null,"",null,""]
[null,null,null,null,"",null,""]
[null,null,null,null,"",null,""]
[null,null,null,null,"",null,""]
[null,null,null,null,"",null,""]
[null,null,null,null,"",null,""]
[null,null,null,null,"",null,""]
[null,null,null,null,"",null,""]
[null,null,null,null,"",null,""]
[null,null,null,null,"",null,""]
[null,null,null,null,"",null,""]
[null,null,null,null,"",null,""]
[null,null,null,null,"",null,""]
[null,null,null,null,"",null,""]
[null,null,null,null,"",null,""]
[null,null,null,null,"",null,""]
[null,null,null,null,"",null,""]
[null,null,null,null,"",null,""]
[null,null,null,null,"",null,""]
[null,null,null,null,"",null,""]
[null,null,null,null,"",null,""]
[null,null,null,null,"",null,""]
[null,null,null,null,"",null,""]
[null,null,null,null,"",null,""]
[null,null,null,null,"",null,""]
[null,null,null,null,"",null,""]
[null,null,null,null,"",null,""]
[null,null,null,null,"",null,""]
[null,null,null,null,"",null,""]
[null,null,null,null,"",null,""]
[null,null,null,null,"",null,""]
[null,null,null,null,"",null,""]
[null,null,null,null,"",null,""]
[null,null,null,null,"",null,""]
[null,null,null,null,"",null,""]
[null,null,null,null,"",null,""]
[null,null,null,null,"",null,""]
[null,null,null,null,"",null,""]
[null,null,null,null,"",null,""]
[null,null,null,null,"",null,""]
[null,null,null,null,"",null,""]
[null,null,null,null,"",null,""]
[null,null,null,null,"",null,""]
[null,null,null,null,"",null,""]
[null,null,null,null,"",null,""]
[null,null,null,null,"",null,""]
[null,null,null,null,"",null,""]
[null,null,null,null,"",null,""]
[null,null,null,null,"",null,""]
[null,null,null,null,"",null,""]
[null,null,null,null,"",null,""]
[null,null,null,null,"",null,""]
[null,null,null,null,"",null,""]
[null,null,null,null,{"$f":"SetBoardsPower(A134,C134)","v":""},null,""]
[null,null,null,null,"",null,""]
[null,null,null,null,"",null,""]
[null,null,null,null,"",null,{"$f":"SetBoardsRoom(A137)","v":""}]
[null,null,null,null,"",null,""]
[null,null,null,null,"",null,""]
[null,null,null,null,"",null,""]
[null,null,null,null,"",null,""]
[null,null,null,null,"",null,""]
[null,null,null,null,"",null,""]
[null,null,null,null,"",null,""]
[null,null,null,null,"",null,""]
[null,null,null,null,"",null,""]
[null,null,null,null,"",null,""]
[null,null,null,null,"",null,""]
[null,null,null,null,"",null,""]
[null,null,null,null,"",null,""]
[null,null,null,null,"",null,""]
[null,null,null,null,"",null,""]
[null,null,null,null,"",null,""]
[null,null,null,null,"",null,""]
[null,null,null,null,"",null,""]
[null,null,null,null,"",null,""]
[null,null,null,null,"",null,""]
[null,null,null,null,"",null,""]
[null,null,null,null,"",null,""]
[null,null,null,null,"",null,""]
[null,null,null,null,"",null,""]
[null,null,null,null,"",null,""]
[null,null,null,null,"",null,""]
[null,null,null,null,"",null,""]
[null,null,null,null,"",null,""]
[null,null,null,null,"",null,""]
[null,null,null,null,"",null,""]
[null,null,null,null,"",null,""]
[null,null,null,null,"",null,""]
[null,null,null,null,"",null,""]
[null,null,null,null,"",null,""]
[null,null,null,null,"",null,""]
[null,null,null,null,"",null,""]
[null,null,null,null,"",null,""]
[null,null,null,null,"",null,""]
[null,null,null,null,"",null,""]
[null,null,null,null,"",null,""]
[null,null,null,null,"",null,""]
[null,null,null,null,"",null,""]
[null,null,null,null,"",null,""]
[null,null,null,null,"",null,""]
[null,null,null,null,"",null,""]
[null,null,null,null,"",null,""]
[null,null,null,null,"",null,""]
[null,null,null,null,"",null,""]
[null,null,null,null,"",null,""]
[null,null,null,null,"",null,""]
[null,null,null,null,"",null,""]
[null,null,null,null,"",null,""]
[null,null,null,null,"",null,""]
[null,null,null,null,"",null,""]
[null,null,null,null,"",null,""]
[null,null,null,null,"",null,""]
[null,null,null,null,"",null,""]
[null,null,null,null,"",null,""]
[null,null,null,null,"",null,""]
[null,null,null,null,"",null,""]
[null,null,null,null,{"$f":"SetBoardsPower(A198,C198)","v":""},null,""]
[null,null,null,null,"",null,""]
[null,null,null,null,"",null,""]
[null,null,null,null,"",null,{"$f":"SetBoardsRoom(A201)","v":""}]
[null,null,null,null,"",null,""]
[null,null,null,null,"",null,""]
[null,null,null,null,"",null,""]
[null,null,null,null,"",null,""]
[null,null,null,null,"",null,""]
[null,null,null,null,"",null,""]
[null,null,null,null,"",null,""]
[null,null,null,null,"",null,""]
[null,null,null,null,"",null,""]
[null,null,null,null,"",null,""]
[null,null,null,null,"",null,""]
[null,null,null,null,"",null,""]
[null,null,null,null,"",null,""]
[null,null,null,null,"",null,""]
[null,null,null,null,"",null,""]
[null,null,null,null,"",null,""]
[null,null,null,null,"",null,""]
[null,null,null,null,"",null,""]
[null,null,null,null,"",null,""]
[null,null,null,null,"",null,""]
[null,null,null,null,"",null,""]
[null,null,null,null,"",null,""]
[null,null,null,null,"",null,""]
[null,null,null,null,"",null,""]
[null,null,null,null,"",null,""]
[null,null,null,null,"",null,""]
[null,null,null,null,"",null,""]
[null,null,null,null,"",null,""]
[null,null,null,null,"",null,""]
[null,null,null,null,"",null,""]
[null,null,null,null,"",null,""]
[null,null,null,null,"",null,""]
[null,null,null,null,"",null,""]
[null,null,null,null,"",null,""]
[null,null,null,null,"",null,""]
[null,null,null,null,"",null,""]
[null,null,null,null,"",null,""]
[null,null,null,null,"",null,""]
[null,null,null,null,"",null,""]
[null,null,null,null,"",null,""]
[null,null,null,null,"",null,""]
[null,null,null,null,"",null,""]
[null,null,null,null,"",null,""]
[null,null,null,null,"",null,""]
[null,null,null,null,"",null,""]
[null,null,null,null,"",null,""]
[null,null,null,null,"",null,""]
[null,null,null,null,"",null,""]
[null,null,null,null,"",null,""]
[null,null,null,null,"",null,""]
[null,null,null,null,"",null,""]
[null,null,null,null,"",null,""]
[null,null,null,null,"",null,""]
[null,null,null,null,"",null,""]
[null,null,null,null,"",null,""]
[null,null,null,null,"",null,""]
[null,null,null,null,"",null,""]
[null,null,null,null,"",null,""]
[null,null,null,null,"",null,""]
[null,null,null,null,"",null,""]
[null,null,null,null,{"$f":"SetBoardsPower(A262,C262)","v":""},null,""]
[null,null,null,null,"",null,""]
[null,null,null,null,"",null,""]
[null,null,null,null,"",null,{"$f":"SetBoardsRoom(A265)","v":""}]
[null,null,null,null,"",null,""]
[null,null,null,null,"",null,""]
[null,null,null,null,"",null,""]
[null,null,null,null,"",null,""]
[null,null,null,null,"",null,""]
[null,null,null,null,"",null,""]
[null,null,null,null,"",null,""]
[null,null,null,null,"",null,""]
[null,null,null,null,"",null,""]
[null,null,null,null,"",null,""]
[null,null,null,null,"",null,""]
[null,null,null,null,"",null,""]
[null,null,null,null,"",null,""]
[null,null,null,null,"",null,""]
[null,null,null,null,"",null,""]
[null,null,null,null,"",null,""]
[null,null,null,null,"",null,""]
[null,null,null,null,"",null,""]
[null,null,null,null,"",null,""]
[null,null,null,null,"",null,""]
[null,null,null,null,"",null,""]
[null,null,null,null,"",null,""]
[null,null,null,null,"",null,""]
[null,null,null,null,"",null,""]
[null,null,null,null,"",null,""]
[null,null,null,null,"",null,""]
[null,null,null,null,"",null,""]
[null,null,null,null,"",null,""]
[null,null,null,null,"",null,""]
[null,null,null,null,"",null,""]
[null,null,null,null,"",null,""]
[null,null,null,null,"",null,""]
[null,null,null,null,"",null,""]
[null,null,null,null,"",null,""]
[null,null,null,null,"",null,""]
[null,null,null,null,"",null,""]
[null,null,null,null,"",null,""]
[null,null,null,null,"",null,""]
[null,null,null,null,"",null,""]
[null,null,null,null,"",null,""]
[null,null,null,null,"",null,""]
[null,null,null,null,"",null,""]
[null,null,null,null,"",null,""]
[null,null,null,null,"",null,""]
[null,null,null,null,"",null,""]
[null,null,null,null,"",null,""]
[null,null,null,null,"",null,""]
[null,null,null,null,"",null,""]
[null,null,null,null,"",null,""]
[null,null,null,null,"",null,""]
[null,null,null,null,"",null,""]
[null,null,null,null,"",null,""]
[null,null,null,null,"",null,""]
[null,null,null,null,"",null,""]
[null,null,null,null,"",null,""]
[null,null,null,null,"",null,""]
[null,null,null,null,"",null,""]
[null,null,null,null,"",null,""]
[null,null,null,null,"",null,""]
[null,null,null,null,"",null,""]
[null,null,null,null,{"$f":"SetBoardsPower(A326,C326)","v":""},null,""]
[null,null,null,null,"",null,""]
[null,null,null,null,"",null,""]
[null,null,null,null,"",null,{"$f":"SetBoardsRoom(A329)","v":""}]
[null,null,null,null,"",null,""]
[null,null,null,null,"",null,""]
[null,null,null,null,"",null,""]
[null,null,null,null,"",null,""]
[null,null,null,null,"",null,""]
[null,null,null,null,"",null,""]
[null,null,null,null,"",null,""]
[null,null,null,null,"",null,""]
[null,null,null,null,"",null,""]
[null,null,null,null,"",null,""]
[null,null,null,null,"",null,""]
[null,null,null,null,"",null,""]
[null,null,null,null,"",null,""]
[null,null,null,null,"",null,""]
[null,null,null,null,"",null,""]
[null,null,null,null,"",null,""]
[null,null,null,null,"",null,""]
[null,null,null,null,"",null,""]
[null,null,null,null,"",null,""]
[null,null,null,null,"",null,""]
[null,null,null,null,"",null,""]
[null,null,null,null,"",null,""]
[null,null,null,null,"",null,""]
[null,null,null,null,"",null,""]
[null,null,null,null,"",null,""]
[null,null,null,null,"",null,""]
[null,null,null,null,"",null,""]
[null,null,null,null,"",null,""]
[null,null,null,null,"",null,""]
[null,null,null,null,"",null,""]
[null,null,null,null,"",null,""]
[null,null,null,null,"",null,""]
[null,null,null,null,"",null,""]
[null,null,null,null,"",null,""]
[null,null,null,null,"",null,""]
[null,null,null,null,"",null,""]
[null,null,null,null,"",null,""]
[null,null,null,null,"",null,""]
[null,null,null,null,"",null,""]
[null,null,null,null,"",null,""]
[null,null,null,null,"",null,""]
[null,null,null,null,"",null,""]
[null,null,null,null,"",null,""]
[null,null,null,null,"",null,""]
[null,null,null,null,"",null,""]
[null,null,null,null,"",null,""]
[null,null,null,null,"",null,""]
[null,null,null,null,"",null,""]
[null,null,null,null,"",null,""]
[null,null,null,null,"",null,""]
[null,null,null,null,"",null,""]
[null,null,null,null,"",null,""]
[null,null,null,null,"",null,""]
[null,null,null,null,"",null,""]
[null,null,null,null,"",null,""]
[null,null,null,null,"",null,""]
[null,null,null,null,"",null,""]
[null,null,null,null,"",null,""]
[null,null,null,null,"",null,""]
[null,null,null,null,"",null,""]
[null,null,null,null,{"$f":"SetBoardsPower(A390,C390)","v":""},null,""]
[null,null,null,null,"",null,""]
[null,null,null,null,"",null,""]
[null,null,null,null,"",null,{"$f":"SetBoardsRoom(A393)","v":""}]
[null,null,null,null,"",null,""]
[null,null,null,null,"",null,""]
[null,null,null,null,"",null,""]
[null,null,null,null,"",null,""]
[null,null,null,null,"",null,""]
[null,null,null,null,"",null,""]
[null,null,null,null,"",null,""]
[null,null,null,null,"",null,""]
[null,null,null,null,"",null,""]
[null,null,null,null,"",null,""]
[null,null,null,null,"",null,""]
[null,null,null,null,"",null,""]
[null,null,null,null,"",null,""]
[null,null,null,null,"",null,""]
[null,null,null,null,"",null,""]
[null,null,null,null,"",null,""]
[null,null,null,null,"",null,""]
[null,null,null,null,"",null,""]
[null,null,null,null,"",null,""]
[null,null,null,null,"",null,""]
[null,null,null,null,"",null,""]
[null,null,null,null,"",null,""]
[null,null,null,null,"",null,""]
[null,null,null,null,"",null,""]
[null,null,null,null,"",null,""]
[null,null,null,null,"",null,""]
[null,null,null,null,"",null,""]
[null,null,null,null,"",null,""]
[null,null,null,null,"",null,""]
[null,null,null,null,"",null,""]
[null,null,null,null,"",null,""]
[null,null,null,null,"",null,""]
[null,null,null,null,"",null,""]
[null,null,null,null,"",null,""]
[null,null,null,null,"",null,""]
[null,null,null,null,"",null,""]
[null,null,null,null,"",null,""]
[null,null,null,null,"",null,""]
[null,null,null,null,"",null,""]
[null,null,null,null,"",null,""]
[null,null,null,null,"",null,""]
[null,null,null,null,"",null,""]
[null,null,null,null,"",null,""]
[null,null,null,null,"",null,""]
[null,null,null,null,"",null,""]
[null,null,null,null,"",null,""]
[null,null,null,null,"",null,""]
[null,null,null,null,"",null,""]
[null,null,null,null,"",null,""]
[null,null,null,null,"",null,""]
[null,null,null,null,"",null,""]
[null,null,null,null,"",null,""]
[null,null,null,null,"",null,""]
[null,null,null,null,"",null,""]
[null,null,null,null,"",null,""]
[null,null,null,null,"",null,""]
[null,null,null,null,"",null,""]
[null,null,null,null,"",null,""]
[null,null,null,null,"",null,""]
[null,null,null,null,"",null,""]
[null,null,null,null,{"$f":"SetBoardsPower(A454,C454)","v":""},null,""]
[null,null,null,null,"",null,""]
[null,null,null,null,"",null,""]
[null,null,null,null,"",null,{"$f":"SetBoardsRoom(A457)","v":""}]
[null,null,null,null,"",null,""]
[null,null,null,null,"",null,""]
[null,null,null,null,"",null,""]
[null,null,null,null,"",null,""]
[null,null,null,null,"",null,""]
[null,null,null,null,"",null,""]
[null,null,null,null,"",null,""]
[null,null,null,null,"",null,""]
[null,null,null,null,"",null,""]
[null,null,null,null,"",null,""]
[null,null,null,null,"",null,""]
[null,null,null,null,"",null,""]
[null,null,null,null,"",null,""]
[null,null,null,null,"",null,""]
[null,null,null,null,"",null,""]
[null,null,null,null,"",null,""]
[null,null,null,null,"",null,""]
[null,null,null,null,"",null,""]
[null,null,null,null,"",null,""]
[null,null,null,null,"",null,""]
[null,null,null,null,"",null,""]
[null,null,null,null,"",null,""]
[null,null,null,null,"",null,""]
[null,null,null,null,"",null,""]
[null,null,null,null,"",null,""]
[null,null,null,null,"",null,""]
[null,null,null,null,"",null,""]
[null,null,null,null,"",null,""]
[null,null,null,null,"",null,""]
[null,null,null,null,"",null,""]
[null,null,null,null,"",null,""]
[null,null,null,null,"",null,""]
[null,null,null,null,"",null,""]
[null,null,null,null,"",null,""]
[null,null,null,null,"",null,""]
[null,null,null,null,"",null,""]
[null,null,null,null,"",null,""]
[null,null,null,null,"",null,""]
[null,null,null,null,"",null,""]
[null,null,null,null,"",null,""]
[null,null,null,null,"",null,""]
[null,null,null,null,"",null,""]
[null,null,null,null,"",null,""]
[null,null,null,null,"",null,""]
[null,null,null,null,"",null,""]
[null,null,null,null,"",null,""]
[null,null,null,null,"",null,""]
[null,null,null,null,"",null,""]
[null,null,null,null,"",null,""]
[null,null,null,null,"",null,""]
[null,null,null,null,"",null,""]
[null,null,null,null,"",null,""]
[null,null,null,null,"",null,""]
[null,null,null,null,"",null,""]
[null,null,null,null,"",null,""]
[null,null,null,null,"",null,""]
[null,null,null,null,"",null,""]
[null,null,null,null,"",null,""]
[null,null,null,null,"",null,""]
[null,null,null,null,"",null,""]
[null,null,null,null,{"$f":"SetBoardsPower(A518,C518)","v":""},null,""]
[null,null,null,null,"",null,""]
[null,null,null,null,"",null,""]
[null,null,null,null,"",null,{"$f":"SetBoardsRoom(A521)","v":""}]
[null,null,null,null,"",null,""]
[null,null,null,null,"",null,""]
[null,null,null,null,"",null,""]
[null,null,null,null,"",null,""]
[null,null,null,null,"",null,""]
[null,null,null,null,"",null,""]
[null,null,null,null,"",null,""]
[null,null,null,null,"",null,""]
[null,null,null,null,"",null,""]
[null,null,null,null,"",null,""]
[null,null,null,null,"",null,""]
[null,null,null,null,"",null,""]
[null,null,null,null,"",null,""]
[null,null,null,null,"",null,""]
[null,null,null,null,"",null,""]
[null,null,null,null,"",null,""]
[null,null,null,null,"",null,""]
[null,null,null,null,"",null,""]
[null,null,null,null,"",null,""]
[null,null,null,null,"",null,""]
[null,null,null,null,"",null,""]
[null,null,null,null,"",null,""]
[null,null,null,null,"",null,""]
[null,null,null,null,"",null,""]
[null,null,null,null,"",null,""]
[null,null,null,null,"",null,""]
[null,null,null,null,"",null,""]
[null,null,null,null,"",null,""]
[null,null,null,null,"",null,""]
[null,null,null,null,"",null,""]
[null,null,null,null,"",null,""]
[null,null,null,null,"",null,""]
[null,null,null,null,"",null,""]
[null,null,null,null,"",null,""]
[null,null,null,null,"",null,""]
[null,null,null,null,"",null,""]
[null,null,null,null,"",null,""]
[null,null,null,null,"",null,""]
[null,null,null,null,"",null,""]
[null,null,null,null,"",null,""]
[null,null,null,null,"",null,""]
[null,null,null,null,"",null,""]
[null,null,null,null,"",null,""]
[null,null,null,null,"",null,""]
[null,null,null,null,"",null,""]
[null,null,null,null,"",null,""]
[null,null,null,null,"",null,""]
[null,null,null,null,"",null,""]
[null,null,null,null,"",null,""]
[null,null,null,null,"",null,""]
[null,null,null,null,"",null,""]
[null,null,null,null,"",null,""]
[null,null,null,null,"",null,""]
[null,null,null,null,"",null,""]
[null,null,null,null,"",null,""]
[null,null,null,null,"",null,""]
[null,null,null,null,"",null,""]
[null,null,null,null,"",null,""]
[null,null,null,null,"",null,""]
[null,null,null,null,"",null,""]
[null,null,null,null,{"$f":"SetBoardsPower(A582,C582)","v":""},null,""]
[null,null,null,null,"",null,""]
[null,null,null,null,"",null,""]
[null,null,null,null,"",null,{"$f":"SetBoardsRoom(A585)","v":""}]
[null,null,null,null,"",null,""]
[null,null,null,null,"",null,""]
[null,null,null,null,"",null,""]
[null,null,null,null,"",null,""]
[null,null,null,null,"",null,""]
[null,null,null,null,"",null,""]
[null,null,null,null,"",null,""]
[null,null,null,null,"",null,""]
[null,null,null,null,"",null,""]
[null,null,null,null,"",null,""]
[null,null,null,null,"",null,""]
[null,null,null,null,"",null,""]
[null,null,null,null,"",null,""]
[null,null,null,null,"",null,""]
[null,null,null,null,"",null,""]
[null,null,null,null,"",null,""]
[null,null,null,null,"",null,""]
[null,null,null,null,"",null,""]
[null,null,null,null,"",null,""]
[null,null,null,null,"",null,""]
[null,null,null,null,"",null,""]
[null,null,null,null,"",null,""]
[null,null,null,null,"",null,""]
[null,null,null,null,"",null,""]
[null,null,null,null,"",null,""]
[null,null,null,null,"",null,""]
[null,null,null,null,"",null,""]
[null,null,null,null,"",null,""]
[null,null,null,null,"",null,""]
[null,null,null,null,"",null,""]
[null,null,null,null,"",null,""]
[null,null,null,null,"",null,""]
[null,null,null,null,"",null,""]
[null,null,null,null,"",null,""]
[null,null,null,null,"",null,""]
[null,null,null,null,"",null,""]
[null,null,null,null,"",null,""]
[null,null,null,null,"",null,""]
[null,null,null,null,"",null,""]
[null,null,null,null,"",null,""]
[null,null,null,null,"",null,""]
[null,null,null,null,"",null,""]
[null,null,null,null,"",null,""]
[null,null,null,null,"",null,""]
[null,null,null,null,"",null,""]
[null,null,null,null,"",null,""]
[null,null,null,null,"",null,""]
[null,null,null,null,"",null,""]
[null,null,null,null,"",null,""]
[null,null,null,null,"",null,""]
[null,null,null,null,"",null,""]
[null,null,null,null,"",null,""]
[null,null,null,null,"",null,""]
[null,null,null,null,"",null,""]
[null,null,null,null,"",null,""]
[null,null,null,null,"",null,""]
[null,null,null,null,"",null,""]
[null,null,null,null,"",null,""]
[null,null,null,null,"",null,""]
[null,null,null,null,"",null,""]
[null,null,null,null,{"$f":"SetBoardsPower(A646,C646)","v":""},null,""]
[null,null,null,null,"",null,""]
[null,null,null,null,"",null,""]
[null,null,null,null,"",null,{"$f":"SetBoardsRoom(A649)","v":""}]
[null,null,null,null,"",null,""]
[null,null,null,null,"",null,""]
[null,null,null,null,"",null,""]
[null,null,null,null,"",null,""]
[null,null,null,null,"",null,""]
[null,null,null,null,"",null,""]
[null,null,null,null,"",null,""]
[null,null,null,null,"",null,""]
[null,null,null,null,"",null,""]
[null,null,null,null,"",null,""]
[null,null,null,null,"",null,""]
[null,null,null,null,"",null,""]
[null,null,null,null,"",null,""]
[null,null,null,null,"",null,""]
[null,null,null,null,"",null,""]
[null,null,null,null,"",null,""]
[null,null,null,null,"",null,""]
[null,null,null,null,"",null,""]
[null,null,null,null,"",null,""]
[null,null,null,null,"",null,""]
[null,null,null,null,"",null,""]
[null,null,null,null,"",null,""]
[null,null,null,null,"",null,""]
[null,null,null,null,"",null,""]
[null,null,null,null,"",null,""]
[null,null,null,null,"",null,""]
[null,null,null,null,"",null,""]
[null,null,null,null,"",null,""]
[null,null,null,null,"",null,""]
[null,null,null,null,"",null,""]
[null,null,null,null,"",null,""]
[null,null,null,null,"",null,""]
[null,null,null,null,"",null,""]
[null,null,null,null,"",null,""]
[null,null,null,null,"",null,""]
[null,null,null,null,"",null,""]
[null,null,null,null,"",null,""]
[null,null,null,null,"",null,""]
[null,null,null,null,"",null,""]
[null,null,null,null,"",null,""]
[null,null,null,null,"",null,""]
[null,null,null,null,"",null,""]
[null,null,null,null,"",null,""]
[null,null,null,null,"",null,""]
[null,null,null,null,"",null,""]
[null,null,null,null,"",null,""]
[null,null,null,null,"",null,""]
[null,null,null,null,"",null,""]
[null,null,null,null,"",null,""]
[null,null,null,null,"",null,""]
[null,null,null,null,"",null,""]
[null,null,null,null,"",null,""]
[null,null,null,null,"",null,""]
[null,null,null,null,"",null,""]
[null,null,null,null,"",null,""]
[null,null,null,null,"",null,""]
[null,null,null,null,"",null,""]
[null,null,null,null,"",null,""]
[null,null,null,null,"",null,""]
[null,null,null,null,"",null,""]
[null,null,null,null,{"$f":"SetBoardsPower(A710,C710)","v":""},null,""]
[null,null,null,null,"",null,""]
[null,null,null,null,"",null,""]
[null,null,null,null,"",null,{"$f":"SetBoardsRoom(A713)","v":""}]
[null,null,null,null,"",null,""]
[null,null,null,null,"",null,""]
[null,null,null,null,"",null,""]
[null,null,null,null,"",null,""]
[null,null,null,null,"",null,""]
[null,null,null,null,"",null,""]
[null,null,null,null,"",null,""]
[null,null,null,null,"",null,""]
[null,null,null,null,"",null,""]
[null,null,null,null,"",null,""]
[null,null,null,null,"",null,""]
[null,null,null,null,"",null,""]
[null,null,null,null,"",null,""]
[null,null,null,null,"",null,""]
[null,null,null,null,"",null,""]
[null,null,null,null,"",null,""]
[null,null,null,null,"",null,""]
[null,null,null,null,"",null,""]
[null,null,null,null,"",null,""]
[null,null,null,null,"",null,""]
[null,null,null,null,"",null,""]
[null,null,null,null,"",null,""]
[null,null,null,null,"",null,""]
[null,null,null,null,"",null,""]
[null,null,null,null,"",null,""]
[null,null,null,null,"",null,""]
[null,null,null,null,"",null,""]
[null,null,null,null,"",null,""]
[null,null,null,null,"",null,""]
[null,null,null,null,"",null,""]
[null,null,null,null,"",null,""]
[null,null,null,null,"",null,""]
[null,null,null,null,"",null,""]
[null,null,null,null,"",null,""]
[null,null,null,null,"",null,""]
[null,null,null,null,"",null,""]
[null,null,null,null,"",null,""]
[null,null,null,null,"",null,""]
[null,null,null,null,"",null,""]
[null,null,null,null,"",null,""]
[null,null,null,null,"",null,""]
[null,null,null,null,"",null,""]
[null,null,null,null,"",null,""]
[null,null,null,null,"",null,""]
[null,null,null,null,"",null,""]
[null,null,null,null,"",null,""]
[null,null,null,null,"",null,""]
[null,null,null,null,"",null,""]
[null,null,null,null,"",null,""]
[null,null,null,null,"",null,""]
[null,null,null,null,"",null,""]
[null,null,null,null,"",null,""]
[null,null,null,null,"",null,""]
[null,null,null,null,"",null,""]
[null,null,null,null,"",null,""]
[null,null,null,null,"",null,""]
[null,null,null,null,"",null,""]
[null,null,null,null,"",null,""]
[null,null,null,null,"",null,""]
[null,null,null,null,"",null,""]
[null,null,null,null,{"$f":"SetBoardsPower(A774,C774)","v":""},null,""]
[null,null,null,null,"",null,""]
[null,null,null,null,"",null,""]
[null,null,null,null,"",null,{"$f":"SetBoardsRoom(A777)","v":""}]
[null,null,null,null,"",null,""]
[null,null,null,null,"",null,""]
[null,null,null,null,"",null,""]
[null,null,null,null,"",null,""]
[null,null,null,null,"",null,""]
[null,null,null,null,"",null,""]
[null,null,null,null,"",null,""]
[null,null,null,null,"",null,""]
[null,null,null,null,"",null,""]
[null,null,null,null,"",null,""]
[null,null,null,null,"",null,""]
[null,null,null,null,"",null,""]
[null,null,null,null,"",null,""]
[null,null,null,null,"",null,""]
[null,null,null,null,"",null,""]
[null,null,null,null,"",null,""]
[null,null,null,null,"",null,""]
[null,null,null,null,"",null,""]
[null,null,null,null,"",null,""]
[null,null,null,null,"",null,""]
[null,null,null,null,"",null,""]
[null,null,null,null,"",null,""]
[null,null,null,null,"",null,""]
[null,null,null,null,"",null,""]
[null,null,null,null,"",null,""]
[null,null,null,null,"",null,""]
[null,null,null,null,"",null,""]
[null,null,null,null,"",null,""]
[null,null,null,null,"",null,""]
[null,null,null,null,"",null,""]
[null,null,null,null,"",null,""]
[null,null,null,null,"",null,""]
[null,null,null,null,"",null,""]
[null,null,null,null,"",null,""]
[null,null,null,null,"",null,""]
[null,null,null,null,"",null,""]
[null,null,null,null,"",null,""]
[null,null,null,null,"",null,""]
[null,null,null,null,"",null,""]
[null,null,null,null,"",null,""]
[null,null,null,null,"",null,""]
[null,null,null,null,"",null,""]
[null,null,null,null,"",null,""]
[null,null,null,null,"",null,""]
[null,null,null,null,"",null,""]
[null,null,null,null,"",null,""]
[null,null,null,null,"",null,""]
[null,null,null,null,"",null,""]
[null,null,null,null,"",null,""]
[null,null,null,null,"",null,""]
[null,null,null,null,"",null,""]
[null,null,null,null,"",null,""]
[null,null,null,null,"",null,""]
[null,null,null,null,"",null,""]
[null,null,null,null,"",null,""]
[null,null,null,null,"",null,""]
[null,null,null,null,"",null,""]
[null,null,null,null,"",null,""]
[null,null,null,null,"",null,""]
[null,null,null,null,"",null,""]
[null,null,null,null,{"$f":"SetBoardsPower(A838,C838)","v":""},null,""]
[null,null,null,null,"",null,""]
[null,null,null,null,"",null,""]
[null,null,null,null,"",null,{"$f":"SetBoardsRoom(A841)","v":""}]
[null,null,null,null,"",null,""]
[null,null,null,null,"",null,""]
[null,null,null,null,"",null,""]
[null,null,null,null,"",null,""]
[null,null,null,null,"",null,""]
[null,null,null,null,"",null,""]
[null,null,null,null,"",null,""]
[null,null,null,null,"",null,""]
[null,null,null,null,"",null,""]
[null,null,null,null,"",null,""]
[null,null,null,null,"",null,""]
[null,null,null,null,"",null,""]
[null,null,null,null,"",null,""]
[null,null,null,null,"",null,""]
[null,null,null,null,"",null,""]
[null,null,null,null,"",null,""]
[null,null,null,null,"",null,""]
[null,null,null,null,"",null,""]
[null,null,null,null,"",null,""]
[null,null,null,null,"",null,""]
[null,null,null,null,"",null,""]
[null,null,null,null,"",null,""]
[null,null,null,null,"",null,""]
[null,null,null,null,"",null,""]
[null,null,null,null,"",null,""]
[null,null,null,null,"",null,""]
[null,null,null,null,"",null,""]
[null,null,null,null,"",null,""]
[null,null,null,null,"",null,""]
[null,null,null,null,"",null,""]
[null,null,null,null,"",null,""]
[null,null,null,null,"",null,""]
[null,null,null,null,"",null,""]
[null,null,null,null,"",null,""]
[null,null,null,null,"",null,""]
[null,null,null,null,"",null,""]
[null,null,null,null,"",null,""]
[null,null,null,null,"",null,""]
[null,null,null,null,"",null,""]
[null,null,null,null,"",null,""]
[null,null,null,null,"",null,""]
[null,null,null,null,"",null,""]
[null,null,null,null,"",null,""]
[null,null,null,null,"",null,""]
[null,null,null,null,"",null,""]
[null,null,null,null,"",null,""]
[null,null,null,null,"",null,""]
[null,null,null,null,"",null,""]
[null,null,null,null,"",null,""]
[null,null,null,null,"",null,""]
[null,null,null,null,"",null,""]
[null,null,null,null,"",null,""]
[null,null,null,null,"",null,""]
[null,null,null,null,"",null,""]
[null,null,null,null,"",null,""]
[null,null,null,null,"",null,""]
[null,null,null,null,"",null,""]
[null,null,null,null,"",null,""]
[null,null,null,null,"",null,""]
[null,null,null,null,"",null,""]
[null,null,null,null,{"$f":"SetBoardsPower(A902,C902)","v":""},null,""]
[null,null,null,null,"",null,""]
[null,null,null,null,"",null,""]
[null,null,null,null,"",null,{"$f":"SetBoardsRoom(A905)","v":""}]
[null,null,null,null,"",null,""]
[null,null,null,null,"",null,""]
[null,null,null,null,"",null,""]
[null,null,null,null,"",null,""]
[null,null,null,null,"",null,""]
[null,null,null,null,"",null,""]
[null,null,null,null,"",null,""]
[null,null,null,null,"",null,""]
[null,null,null,null,"",null,""]
[null,null,null,null,"",null,""]
[null,null,null,null,"",null,""]
[null,null,null,null,"",null,""]
[null,null,null,null,"",null,""]
[null,null,null,null,"",null,""]
[null,null,null,null,"",null,""]
[null,null,null,null,"",null,""]
[null,null,null,null,"",null,""]
[null,null,null,null,"",null,""]
[null,null,null,null,"",null,""]
[null,null,null,null,"",null,""]
[null,null,null,null,"",null,""]
[null,null,null,null,"",null,""]
[null,null,null,null,"",null,""]
[null,null,null,null,"",null,""]
[null,null,null,null,"",null,""]
[null,null,null,null,"",null,""]
[null,null,null,null,"",null,""]
[null,null,null,null,"",null,""]
[null,null,null,null,"",null,""]
[null,null,null,null,"",null,""]
[null,null,null,null,"",null,""]
[null,null,null,null,"",null,""]
[null,null,null,null,"",null,""]
[null,null,null,null,"",null,""]
[null,null,null,null,"",null,""]
[null,null,null,null,"",null,""]
[null,null,null,null,"",null,""]
[null,null,null,null,"",null,""]
[null,null,null,null,"",null,""]
[null,null,null,null,"",null,""]
[null,null,null,null,"",null,""]
[null,null,null,null,"",null,""]
[null,null,null,null,"",null,""]
[null,null,null,null,"",null,""]
[null,null,null,null,"",null,""]
[null,null,null,null,"",null,""]
[null,null,null,null,"",null,""]
[null,null,null,null,"",null,""]
[null,null,null,null,"",null,""]
[null,null,null,null,"",null,""]
[null,null,null,null,"",null,""]
[null,null,null,null,"",null,""]
[null,null,null,null,"",null,""]
[null,null,null,null,"",null,""]
[null,null,null,null,"",null,""]
[null,null,null,null,"",null,""]
[null,null,null,null,"",null,""]
[null,null,null,null,"",null,""]
[null,null,null,null,"",null,""]
[null,null,null,null,"",null,""]
[null,null,null,null,{"$f":"SetBoardsPower(A966,C966)","v":""},null,""]
[null,null,null,null,"",null,""]
[null,null,null,null,"",null,""]
[null,null,null,null,"",null,{"$f":"SetBoardsRoom(A969)","v":""}]
[null,null,null,null,"",null,""]
[null,null,null,null,"",null,""]
[null,null,null,null,"",null,""]
[null,null,null,null,"",null,""]
[null,null,null,null,"",null,""]
[null,null,null,null,"",null,""]
[null,null,null,null,"",null,""]
[null,null,null,null,"",null,""]
[null,null,null,null,"",null,""]
[null,null,null,null,"",null,""]
[null,null,null,null,"",null,""]
[null,null,null,null,"",null,""]
[null,null,null,null,"",null,""]
[null,null,null,null,"",null,""]
[null,null,null,null,"",null,""]
[null,null,null,null,"",null,""]
[null,null,null,null,"",null,""]
[null,null,null,null,"",null,""]
[null,null,null,null,"",null,""]
[null,null,null,null,"",null,""]
[null,null,null,null,"",null,""]
[null,null,null,null,"",null,""]
[null,null,null,null,"",null,""]
[null,null,null,null,"",null,""]
[null,null,null,null,"",null,""]
[null,null,null,null,"",null,""]
[null,null,null,null,"",null,""]
[null,null,null,null,"",null,""]
[null,null,null,null,"",null,""]
[null,null,null,null,"",null,""]
[null,null,null,null,"",null,""]
[null,null,null,null,"",null,""]
[null,null,null,null,"",null,""]
[null,null,null,null,"",null,""]
[null,null,null,null,"",null,""]
[null,null,null,null,"",null,""]
[null,null,null,null,"",null,""]
[null,null,null,null,"",null,""]
[null,null,null,null,"",null,""]
[null,null,null,null,"",null,""]

{"sheet":"E-mail","index":3,"n_rows":4,"n_cols":1,"rows_kept":4,"cut":false,"hidden":false,"merged":[]}
["A4"]
[]
["Адреса E-mail для отправки уведомлений"]
["E-mail@E-mail.ru"]

{"sheet":"HELP","index":4,"n_rows":83,"n_cols":3,"rows_kept":83,"cut":false,"hidden":false,"merged":[]}
[]
[]
[null,null,"Обозначение устройства. \nВ данный столбец вводится обозначение устройства в вашем проекте (например В1, ПД5 и т.п). \nВводится может любой текст. Данный текст будет отображаться в однолинейной схеме как обозначение устройства - потребителя."]
[]
[]
[]
[]
[null,null,"Назначение устройства. \nВ данный столбец вводится функциональное назначение устройства-потребителя. \nЗначение можно выбрать только из выпадающего списка."]
[]
[]
[]
[]
[null,null,"Мощность Pу, кВт.\nВ данный столбец вводится число, соответствующее установленной мощности устройства-потребителя. \nПри вводе существуют следующие ограничения: \nдля однофазных потребителей не более 4кВт,\nдля трехфазных потребителей не более 355 кВт."]
[]
[]
[]
[]
[null,null,"Напряжение питания, В\nВводится значение из выпадающего списка"]
[]
[]
[]
[]
[null,null,"Количество рабочих двигателей \nВ данном столбце вводится количество рабочих двигателей устройства-потребителя.\nЗначение может быть в пределах 1-8 для устройств имеющих двигатель или  в пределах 0-8 для устройств не имеющих двигателя"]
[]
[]
[]
[]
[null,null,"Количество резервных двигателей\nВ данном столбце вводится количество  резервных двигателей устройства-потребителя.\nЗначение может быть 0 или 1"]
[]
[]
[]
[]
[null,null,"Наличие частотника и задатчика скорости.\nЗначение выбирается из выпадающего списка"]
[]
[]
[]
[]
[null,null,"№ помещения.\nВ данный столбец вводится текст, обозначающий номер помещения в котором устанавливается устройство-потребитель.\nДанный текст будет отображаться в однолинейной схеме как номер помещения"]
[]
[]
[]
[]
[null,null,"Номер щита\nВ этот столбец вводится текст, обозначающий имя щита, в котором будут устанавливатся автоматы и др. оборудование предназначенное для защиты и управления данным устройством-потребителем. \nПри наборе обратите внимание на раскладку клавиатуры (Щиты с именем MCC-1 в русской раскладке и MCC-1 в английской раскладке будут считаться разными щитами. Также имеет значение раскладка при наборе букв имеющих одинаковое написание на русском и английском языках)\nПо значению в столбце будут формироваться щиты на листе \"Щиты\" и в однолинейной схеме."]
[]
[]
[]
[]
[null,null,"Длина кабеля\nВводится длина кабеля от потребителя до щита"]
[]
[]
[]
[]
[null,null,"Имя щита\nВ данном столбце должны быть перечислены все щиты из листа Задание (для формирования данного перечисления можно воспользоваться кнопкой \"Сформировать список щитов\", при формировании произойдет сортировка щитов по алфавиту)\n"]
[]
[]
[]
[]
[null,null,"Производитель \nВводится значение из списка производителей"]
[]
[]
[]
[]
[null,null,"Тип вводного блока\nВводится значение из списка вводных блоков"]
[]
[]
[]
[]
[null,null,"Расположение потребителей щита \nДанный столбец является информационным и не предназначен для заполнения.\nЗдесь отображаются номера помещений всех потребителей для данного щита"]
[]
[]
[]
[]
[null,null,"Ориентировочная расчетная мощность\nДанный столбец является информационным и не предназначен для заполнения.\nЗдесь отображается ориентировочная расчетная мощность  для данного щита"]
[]
[]
[]
[]
[null,null,"Ориентировочный расчетный ток утечки сети, мА\nДанный столбец является информационным и не предназначен для заполнения.\nЗдесь отображается ориентировочный  расчетный ток утечки сети, для данного щита при условии выбора вводного блока с УЗО"]
[]
[]
[]
[]
[null,null,"E-mail\nВ каждую ячейку вводится адрес E-mail для отправки отчетов.\nВ одной ячейке один адрес\nДолжна быть заполнена хотя бы одна ячейка"]